{"text_format":"3","workbook":"xlsx","n_sheets":2,"sheets":["Cover","S-SIZUZULU"],"not_rendered":{"images":1,"external_links":1,"defined_names":1},"read":"whole","date_system":"1900"}

{"sheet":"Cover","index":0,"n_rows":45,"n_cols":4,"rows_kept":45,"merged":[[0,0,0,3],[1,0,1,3],[10,0,10,3],[11,0,11,3],[13,0,13,3],[14,0,14,3],[16,0,16,3],[17,0,17,3],[18,0,18,1],[18,2,18,3],[19,0,19,1],[19,2,19,3],[20,0,20,1],[20,2,20,3],[21,0,21,1],[21,2,21,3],[22,0,22,1],[22,2,22,3],[23,2,23,3],[24,2,24,3],[25,0,25,1],[25,2,25,3],[26,0,26,1],[26,2,26,3],[30,2,30,3],[31,2,31,3],[32,2,32,3],[33,2,33,3],[34,2,34,3],[37,0,37,3]]}
["PROVINCIAL ADMINISTRATION OF KWAZULU-NATAL"]
["DEPARTMENT OF PUBLIC WORKS"]
{"$rows_empty":8}
["BILLS OF QUANTITIES"]
[{"$f":"+'[1]Cover Page-Section 1 of 2'!A12:D12","v":"with GCC for Construction Works - Second Edition 2010"}]
[]
["CONTRACTUAL SECTION"]
["ONE VOLUME APPROACH"]
[]
["PHASE 14: STORM DAMAGED PROGRAMME: REPAIRS AND RENOVATIONS TO STORM DAMAGED SCHOOLS THROUGHOUT THE PROVINCE OF KWAZULU-NATAL: NORTH COAST REGION: CLUSTER 3: SIZUZULU PRIMARY SCHOOL. OPEN BID   "]
[]
[{"$f":"+'[1]Cover Page-Section 1 of 2'!A20","v":"Engineer/Principal Agent"},null,{"$f":"+'[1]Cover Page-Section 1 of 2'!C20:D20","v":"Electrical Engineer"}]
[{"$f":"+'[1]Cover Page-Section 1 of 2'!A21:B21","v":"Naidu Consulting (Pty) Ltd        "},null,{"$f":"+'[1]Cover Page-Section 1 of 2'!C21:D21","v":"DNA Engineers & Project Managers"}]
[{"$f":"+'[1]Cover Page-Section 1 of 2'!A22:B22","v":"P.O Box 2796"},null,{"$f":"+'[1]Cover Page-Section 1 of 2'!C22:D22","v":"641 Peter Mokaba Rd"}]
[{"$f":"+'[1]Cover Page-Section 1 of 2'!A23:B23","v":"Westville"},null,{"$f":"+'[1]Cover Page-Section 1 of 2'!C23:D23","v":"Morningside"}]
[{"$f":"+'[1]Cover Page-Section 1 of 2'!A24:B24","v":"Durban"},null,"Durban"]
[{"$f":"+'[1]Cover Page-Section 1 of 2'!A25:B25","v":3635},null,{"$f":"+'[1]Cover Page-Section 1 of 2'!C25:D25","v":4091}]
[{"$f":"+'[1]Cover Page-Section 1 of 2'!A26","v":"031 - 265 6007 - Tel Number"},null,{"$f":"+'[1]Cover Page-Section 1 of 2'!C26:D26","v":"031 - 207 1576 - Tel Number"}]
[{"$f":"+'[1]Cover Page-Section 1 of 2'!A27","v":"031 - 265 6011 - Fax Number"},null,{"$f":"+'[1]Cover Page-Section 1 of 2'!C27:D27","v":"086 - 670 8703 - Fax Number"}]
[{"$f":"+'[1]Cover Page-Section 1 of 2'!A28:B28","v":"Sherwyn.Bhana@naiduconsulting.com"},null,{"$f":"+'[1]Cover Page-Section 1 of 2'!C28:D28","v":"info@dnaengineers.co.za "}]
[]
[]
[{"$f":"+'[1]Cover Page-Section 1 of 2'!A30","v":"Employer:"},null,{"$f":"+'[1]Cover Page-Section 1 of 2'!C30:D30","v":"Region:"}]
[{"$f":"+'[1]Cover Page-Section 1 of 2'!A31","v":"Head: Public Works"},null,{"$f":"+'[1]Cover Page-Section 1 of 2'!C31:D31","v":"Head Public Works: Operations"}]
[{"$f":"+'[1]Cover Page-Section 1 of 2'!A32","v":"KZN Department of Public Works"},null,{"$f":"+'[1]Cover Page-Section 1 of 2'!C32:D32","v":"KZN Department of Public Works"}]
[{"$f":"+'[1]Cover Page-Section 1 of 2'!A33","v":"Private Bag X 9041"},null,{"$f":"+'[1]Cover Page-Section 1 of 2'!C33:D33","v":"Private Bag X 9041"}]
[{"$f":"+'[1]Cover Page-Section 1 of 2'!A34","v":"PIETERMARITZBURG"},null,{"$f":"+'[1]Cover Page-Section 1 of 2'!C34:D34","v":"Pietermaritzburg"}]
[{"$f":"+'[1]Cover Page-Section 1 of 2'!A35","v":3200},null,{"$f":"+'[1]Cover Page-Section 1 of 2'!C35:D35","v":"3200"}]
[{"$f":"+'[1]Cover Page-Section 1 of 2'!A36","v":"Tel Number:     033 - 355 5569"},null,{"$f":"+'[1]Cover Page 2'!C32","v":"Tel Number:"},{"$f":"+'[1]Cover Page-Section 1 of 2'!D36","v":"033 - 355 5569"}]
[{"$f":"+'[1]Cover Page-Section 1 of 2'!A37","v":"Fax Number:    N/A"},null,{"$f":"+'[1]Cover Page 2'!C33","v":"Fax Number:"},{"$f":"+'[1]Cover Page-Section 1 of 2'!D37","v":"N/A"}]
[]
[{"$f":"+'[1]Cover Page-Section 1 of 2'!A39","v":"Tender Number:      ZNTU04194W"}," ","Project Code:",{"$f":"+'[1]Master Data'!WimsNo","v":"063963"}]
[{"$f":"+'[1]Cover Page-Section 1 of 2'!A40","v":"CIDB Grading:        4GB or higher"}," ",{"$f":"+'[1]Cover Page-Section 1 of 2'!C40","v":"Document Date:"},"2023-07-04"]
[{"$f":"+'[1]Cover Page-Section 1 of 2'!A41","v":"ECDP Number:       N/A"}]
["Adertistement Date: 02 June 2023"]
["Contracting Party: "]
[{"$f":"+'[1]Cover Page-Section 1 of 2'!A44:D44","v":"CIDB Registration number:"}]
[{"$f":"+'[1]Cover Page-Section 1 of 2'!A45:D45","v":"Central Suppliers Database Registration Number: "}]

{"sheet":"S-SIZUZULU","index":1,"n_rows":1688,"n_cols":9,"rows_kept":1688,"merged":[[0,0,1,8],[2,0,2,2],[2,3,2,4],[2,5,2,6],[2,7,2,8],[3,0,4,2],[3,3,4,4],[3,5,4,6],[3,7,4,8],[5,0,5,8]]}
["PHASE 14: STORM DAMAGED PROGRAMME: REPAIRS AND RENOVATIONS TO STORM DAMAGED SCHOOLS THROUGHOUT THE PROVINCE OF KWAZULU-NATAL: NORTH COAST REGION: CLUSTER 3: SIZUZULU PRIMARY SCHOOL. OPEN BID   "]
[]
["SCHOOL NAME",null,null,"SIZUZULU PRIMARY SCHOOL",null,"WIMS",null,"CONTRACT TYPE"]
["BIDDING ENTITY:",{"$nulls":4},"063963",null,"OPEN BID"]
[]
["BIDDERS TO NOTE THAT ONLY THE RATE COLUMN TO BE FILLED "]
[]
["SECTION","BILL","PAGE NO","ITEM NO","DESCRIPTION","UNIT","QUANTITY","RATE","AMOUNT"]
[1,1,1,null,"SECTION No. 1","H1",0]
[]
[1,1,1,null,"BILL No. 1 : PRELIMINARIES AND GENERAL","H1",0]
[]
[1,1,1,null,"(Applicable to all sections of the Works)",null,0]
[]
[1,1,1,null,"(CPAP WORK GROUP NO. 190 UNLESS OTHERWISE STATED)","H2",0]
[]
[1,1,1,null,"(Applicable to all sections of the Works)",null,0]
[]
[1,1,1,null,"NOTES:","H2",0]
[]
[1,1,1,null,"(i) The agreement is to be the General Conditions of Contract for Works of Civil Engineering Construction (2010) (Second Edition) , publishedby the S. A. Institution Of Civil Engineering.",null,0]
[]
[1,1,1,null,"(ii) The Preliminaries are to be the Construction and management requirements for works contracts - Part 1: General engineering and construction works (SANS 1921-1: 2004 Edition 1) prepared by Standards South Africa and shall be deemed to be incorporated herein.",null,0]
[]
[1,1,1,null,"(iii) Tenderers are referred to the above mentioned documents for the full intent and meaning of each clause thereof (hereinafter referred to by heading and clause number only) for which such allowance must be made as may be considered necessary.",null,0]
[]
[1,1,1,null,"(iv)Where standard clauses or alternatives are not entirely applicable to this contract such modifications, corrections or supplements as will apply are given under each relevant clause heading.",null,0]
[]
[1,1,1,null,"(v) Where any item is not relevant to this specific contract such item is marked N/A (signifying \"not  applicable\").",null,0]
[]
[1,1,2,null,"(vi) Adjustment of the preliminaries:  each item priced, is to be allocated to one or more of  thethree categories, where \"F\" denotes a fixed amount  (amount not to be varied), \"V\" denotes an amount  variable in proportion to value and \"T\" denotes an  amount in proportion to time.",null,0]
[]
[1,1,2,null,"(vii) Time (T) related Preliminaries will only be adjusted for omissions or additions, issued by the Employer, or delays caused by the Employer, for which variation and extension of time has been granted. See Contract Data.",null,0]
[]
[1,1,2,null,"SECTION A: GENERAL CONDITIONS OF CONTRACT","H2",0]
[]
[1,1,2,1,"A1. General (Clause 1)  F:................... V:.................... T:....................","Item",1,null,{"$f":"G37*H37","v":0}]
[{"$nulls":4},""]
[1,1,2,2,"A2.Basis of the Contract (Clause 2)  F:................... V:.................... T:....................","Item",0]
[{"$nulls":4},""]
[1,1,2,3,"A3.Engineer (clause 3) F:................... V:.................... T:....................","Item",0]
[{"$nulls":4},""]
[1,1,2,4,"A4.Contractor's General Obligation (clause 4) F:................... V:.................... T:....................","Item",0]
[{"$nulls":4},""]
[1,1,2,5,"A5.Time and Related Matters (clause 5) - As referred to in the Contract Data under Special Time and Related Matters (clause 5) - As referred to in the Contract Data under Special Condition of Contract. The Contract Period shall be deemed to include all Non - Working Days, Special Non - Working Days and the year-end Builders Annual Industry Holiday Periods. F:................... V:.................... T:...................."]
[{"$nulls":4},""]
[1,1,3,6,"A6.Payment and Related Matters (clause 6) F:................... V:.................... T:....................","Item",0]
[{"$nulls":4},""]
[1,1,3,7,"A7. Quality and Related Matters (clause 7) F:................... V:.................... T:....................","Item",0]
[{"$nulls":4},""]
[1,1,3,8,"A8.Risk and Related Matters (clause 8) F:................... V:.................... T:....................","Item",0]
[{"$nulls":4},""]
[1,1,3,9,"A9.Termination of Contract (clause 9) F:................... V:.................... T:....................","Item",0]
[{"$nulls":4},""]
[1,1,3,10,"A10.Claims and Disputes (clause 10) F:................... V:.................... T:....................","Item",0]
[]
[1,1,3,null,"SECTION B: SANS 1921-1-2004 (Edition 1): CONSTRUCTION AND MANAGEMENT FOR THE WORKS: PART 1  Refer to the SCOPE OF WORK for detail requirements","H2",0]
[]
[1,1,3,11,"B1.Scope  F................. V:.................... T:....................","Item",0]
[{"$nulls":4},""]
[1,1,3,12,"B2.Normative references  F:................... V:.................... T:....................","Item",0]
[{"$nulls":4},""]
[1,1,3,13,"B3.Definitions  F:................... V:.................... T:....................","Item",0]
[{"$nulls":4},""]
[1,1,4,14,"B4.Requirements for construction and management  F:................... V:.................... T:....................","Item",0]
[{"$nulls":4},""]
[1,1,4,15,"B4.1General F:................... V:.................... T:....................","Item",0]
[{"$nulls":4},""]
[1,1,4,16,"B4.2Responsibilities for design and construction  F:................... V:.................... T:....................","Item",0]
[{"$nulls":4},""]
[1,1,4,17,"B4.3Planning, programme and method statements  F:................... V:.................... T:....................","Item",0]
[{"$nulls":4},""]
[1,1,4,18,"B4.4Quality assurance  F:................... V:.................... T:....................","Item",0]
[{"$nulls":4},""]
[1,1,4,19,"B4.5Setting Out  F:................... V:.................... T:....................","Item",0]
[{"$nulls":4},""]
[1,1,4,20,"B4.6Management and disposal of Water  F:................... V:.................... T:....................","Item",0]
[{"$nulls":4},""]
[1,1,4,21,"B4.7Blasting  F:................... V:.................... T:....................","Item",0]
[{"$nulls":4},""]
[1,1,4,22,"B4.8Works adjacent to services and structures  F:................... V:.................... T:....................","Item",0]
[{"$nulls":4},""]
[1,1,4,23,"B4.9Management of the Works and site  F:................... V:.................... T:....................","Item",0]
[{"$nulls":4},""]
[1,1,4,24,"B4.10Earthworks  F:................... V:.................... T:....................","Item",0]
[{"$nulls":4},""]
[1,1,5,25,"B4.11Testing  F:................... V:.................... T:....................","Item",0]
[{"$nulls":4},""]
[1,1,5,26,"B4.12Materials, samples and fabrication drawings  F:................... V:.................... T:....................","Item",0]
[{"$nulls":4},""]
[1,1,5,27,"B4.13Equipment  F:................... V:.................... T:....................","Item",0]
[{"$nulls":4},""]
[1,1,5,28,"B4.14Site Establishment  F:................... V:.................... T:....................","Item",0]
[{"$nulls":4},""]
[1,1,5,29,"B4.15Survey Control  F:................... V:.................... T:....................","Item",0]
[{"$nulls":4},""]
[1,1,5,30,"B4.16Temporary Works  F:................... V:.................... T:....................","Item",0]
[{"$nulls":4},""]
[1,1,5,31,"B4.17Existing Services  F:................... V:.................... T:....................","Item",0]
[{"$nulls":4},""]
[1,1,5,32,"B4.18Health and Safety  F:................... V:.................... T:....................","Item",0]
[{"$nulls":4},""]
[1,1,5,33,"B4.19Environmental Requirements  F:................... V:.................... T:....................","Item",0]
[{"$nulls":4},""]
[1,1,5,34,"B4.20Alterations, additions, extensions and modifications to existing works  F:................... V:.................... T:....................","Item",0]
[{"$nulls":4},""]
[1,1,6,35,"B4.21Inspection of adjoining structures, services, buildings and property  F:................... V:.................... T:....................","Item",0]
[{"$nulls":4},""]
[1,1,6,36,"B4.22Attendance on nominated and selected subcontractors  F:................... V:.................... T:....................","Item",0]
[]
[]
[1,1,6,null,"SECTION C: SCOPE OF WORK in accordance with SANS 10403","H2",0]
[]
[1,1,6,null,"'(The reference to Clauses refer to Table B.1 of SANS 1921-1:2004)",null,0]
[]
[1,1,6,37,"C1.Certification by recognised bodies - CLAUSE 4.4  F................. V:.................... T:....................","Item",0]
[{"$nulls":4},""]
[1,1,6,38,"C2.Agrément certificates - CLAUSE 4.5  F................. V:.................... T:....................","N/A",0]
[{"$nulls":4},""]
[1,1,6,39,"C3.Other services and facilities - CLAUSE 4.8  F................. V:.................... T:....................","Item",0]
[{"$nulls":4},""]
[1,1,6,40,"C4.Recording of weather - CLAUSE 5.2  F................. V:.................... T:....................","Item",0]
[{"$nulls":4},""]
[1,1,6,41,"C5.Management meetings - CLAUSE 5.3  F................. V:.................... T:....................","Item",0]
[{"$nulls":4},""]
[1,1,6,42,"C6.Daily records CLAUSE 5.6  F................. V:.................... T:....................","Item",0]
[{"$nulls":4},""]
[1,1,7,43,"C7.Bond and guarantees - CLAUSE 5.7  F................. V:.................... T:....................","Item",0]
[{"$nulls":4},""]
[1,1,7,44,"C8.Permits - CLAUSE 5.9  F................. V:.................... T:....................","Item",0]
[{"$nulls":4},""]
[1,1,7,45,"C9.Proof of compliance with the law- CLAUSE 5.10  F................. V:.................... T:....................","Item",0]
[]
[]
[1,1,7,null,"SECTION D: SPECIFICATION DATA ASSOCIATED WITH SANS 1921-1:2004 (Table A.1)","H2",0]
[]
[1,1,7,46,"D1.Requirements for drawings, information and calculations for which the contractor is responsible CLAUSE 4.1.7  F................. V:.................... T:....................","Item",0]
[]
[1,1,7,47,"D2.The responsibility strategy assigned to the contractor for the works  CLAUSE 4.2.1  F................. V:.................... T:....................","Item",0]
[]
[1,1,7,48,"D3.The planning, programme and method statements - CLAUSE 4.3  F................. V:.................... T:....................","Item",0]
[]
[1,1,7,49,"D4.Samples of materials, workmanship and finishes  - CLAUSE 4.12.1  F................. V:.................... T:....................","Item",0]
[]
[1,1,8,50,"D5.Fabrication drawings that the contractor is to provide and deliver to the employer  - CLAUSE  4.12.2  F................. V:.................... T:....................","Item",0]
[]
[1,1,8,51,"D6.Office for the foreman CLAUSE 4.14.3  F................. V:.................... T:....................","Item",0]
[{"$nulls":4},""]
[1,1,8,52,"D7.Telephone -  CLAUSE 4.14.3  F................. V:.................... T:....................","Item",0]
[{"$nulls":4},""]
[1,1,8,53,"D8.Office for inspector of works  -  CLAUSE 4.14.3  F................. V:.................... T:....................","Item",0]
[]
[1,1,8,54,"D9.Telephone in office for inspector of works  -  CLAUSE 4.14.3  F................. V:.................... T:....................","Item",0]
[]
[1,1,8,55,"D10.Sheds  -  CLAUSE 4.14.3  F................. V:.................... T:....................","Item",0]
[]
[1,1,8,56,"D11.Provision and erection of signboards -  CLAUSE 4.14.6  F................. V:.................... T:....................","Item",0]
[]
[1,1,8,57,"D12.Termination, diversion or maintenance of existing services - CLAUSE4.17.1  F................. V:.................... T:....................","Item",0]
[]
[1,1,8,58,"D13.Services which are known to exist - CLAUSE 4.17.3F................. V:.................... T:....................","Item",0]
[]
[1,1,9,59,"D14.Detection apparatus - CLAUSE 4.17.4  F................. V:.................... T:....................","Item",0]
[]
[1,1,9,60,"D15.Additional health and safety requirements - CLAUSE 4.18  F................. V:.................... T:....................","Item",0]
[]
[1,1,10,null,"SECTION E: SPECIFIC PRELIMINARIES","H2",0]
[]
[1,1,10,null,"Section E contains Specific Preliminary items which apply to this contract except where \"N/A\" (Not Applicable) appears against the item","H3",0]
[]
[1,1,10,null,"E1. PROPRIETARY BRANDED PRODUCTS","H2",0]
[]
[1,1,10,61,"The contractor shall take delivery of, handle, store, use apply and/or fix all proprietary branded products in strict accordance with the manufacturers' instruction after consultation with the manufacturer's authorised representative.  F:......................... V:........................ T:.........................","Item",0]
[]
[1,1,10,null,"E2. OVERTIME","H2",0]
[]
[1,1,10,62,"Should overtime be required to be worked for any reasonwhatsoever, the costs of such overtime are to be borne by the Contractor unless the Engineer/Principal Agent has specifically authorised in writing, prior to the execution thereof, that costs for such overtime are to be borne by the Employer.F:......................... V:........................ T:........................","Item",0]
[]
[1,1,10,null,"E3. AS BUILT DRAWINGS","H2",0]
[]
[1,1,10,63,"The position of construction breaks and the extent ofindividual concrete pours are to be recorded by the Contractor on the Structural Engineer's drawings and areto be submitted to the Engineer/Principal Agent and the Structural Engineer for their records.F:......................... V:........................ T:.........................","Item",0]
[]
[1,1,11,null,"E4. SITE INSTRUCTIONS","H2",0]
[]
[1,1,11,64,"Site Instructions issued on site are to be recorded intriplicate in a Site Instruction book which is to be maintained on site by the Contractor.F:............................. V:............................ T:.................","Item",0]
[]
[1,1,11,null,"E5. LABOUR RECORDS","H2",0]
[]
[1,1,11,65,"At the end of each week the Contractor shall provide the Engineer/Principal Agent with a written record, in schedule form, reflecting the number and description oftradesmen and labourers employed by him and all sub-contractors on the works each day.F:............................. V:...........................T:...................","Item",0]
[]
[1,1,11,null,"Note: In the event that the contractor fails to satisfy the requirements of this specification, the Employer (Head: Public Works) may apply any of the sanctions provided in the contract. Sanctions may include the application of a financial penalty of .04% of the Contract Sum per calendar day of which the requiredreport has not been submitted.",null,0]
[]
[1,1,11,null,"E6. PLANT RECORDS","H2",0]
[]
[1,1,11,66,"At the end of each week the Contractor shall providethe Engineer/Principal Agent with a written record, inschedule form, reflecting the number, type and capacityof all plant, excluding hand tools,  currently used on the works.F:......................... V:........................ T:.........................","Item",0]
[]
[1,1,12,null,"E7. CESSION OF MONIES","H2",0]
[]
[1,1,12,67,"The Contractor shall not cede nor assign his rights orclaims to any monies due or to become due under this contract.F:......................... V:........................ T:.........................","Item",0]
[]
[1,1,12,null,"E8. SECTIONAL COMPLETION","H2",0]
[]
[1,1,12,68,"When it is required that the contract be executedin sections or portions, the tenderer shall allow for all costs in this regard as no claim for additional costs will be entertained.F:......................... V:........................ T:.........................","Item",0]
[]
[1,1,13,null,"E9. LOCAL LABOUR","H2",0]
[]
[1,1,13,69,"It is a general requirement of this contract that persons normally resident in the locality of the works (Local Labour) or unemployed parents whose children attend this specific school, be given preference for employment on the contract. Provided, however, that should adequate and appropriate Labour not be available within the locality, others may be employed subject to satisfactory proof being provided that every reasonable endeavour has been made to employ Local Labour. The Contractor shall identify the local community leaders with the purpose of negotiating with them regarding the utilization of Local Labour in the construction process. In this regard, the Contractor shall furthermore give preference, wherever possible to the employment of single heads of households, women and youth. The Contractor shall, in general, maximize the involvement of the local community. All standard local labour employment forms (EPWP), local labour forms, together with the supporting documentation ie, Certified copies of ID Documents, Employment details, wage rates, proof of payments, period of employment and employment contracts, must be submitted with the monthly payment certificate to the Engineer.    F:......................... V:........................ T:.........................","Item",0]
[]
[1,1,13,null,"E10. IMPORT PERMITS AND DUTIES","H2",0]
[]
[1,1,13,70,"The responsibility for obtaining the necessary importpermits shall rest with the successful Tenderer. No foreign exchange will be arranged or provided by the Administration.Tenderers are to allow in their tenders and pay the ordinary levy imposed on imported items in terms ofitem 196.10 of Part 8 of Schedule No. 1 of the Customsand Excise Act, 1964 with effect from 1 October 1989.F:......................... V:........................ T:.........................","Item",0]
[]
[1,1,14,null,"E11. CONTRACT PRICE ADJUSTMENT PROVISIONS (CPAP)","H2",0]
[]
[1,1,14,71,"Notwithstanding anything to the contrary contained in theGCC for Construction Works 2010 2nd Edition, thisContract shall only when the Construction Period exceeds 6 months and the Contract sum exceeds R1,000,000,00  be subject to the Contract Price Adjustment Provisions Indices Application Manual for use with P0151 indices (CPAP) (Revised 1 January 2013) as published by Statistics South Africa. Tenderers are advised thatwith reference to Clause 3.4.6 of the Contract Price Adjustment Provisions (CPAP) Indices ApplicationsManual, the Head: Public Workswill not accept the submission by Tenderers of lists of  additional items.Where this contract is a Lump Sum contract,the contract will be subject to Contract Price Adjustment Provisions (CPAP) only where the contract period equalsor exceeds 6 calendar months. The applicable work group shall be WG 180 for domestic buildings or WG 181 for commercial and industrial buildings.F:......................... V:........................ T:.........................","Item",0]
[]
[]
[1,1,14,null,"E12. EPWP CONDITIONS AND SPECIFICATIONS","H2",0]
[]
[1,1,15,null,"12.1  EMPLOYMENT TARGETS ","H3",0]
[]
[1,1,15,72,"E12.1 a Employment TargetsThe contractor needs to provide a realistic estimate onthe number of jobs that the project has the potential tocreate throughout the project duration as the project will be implemented using labour intensive construction methods on elements where it is economical and feasible for this construction method.No of jobs to be created = ……. [Contractor to fill in an estimated number]F:......................... V:....................... T:......................","Item",0]
[]
[1,1,15,73,"E12.1 b Employment requirementsTenderers are advised that this contract will be subject tothe Expanded Public Works Program (EPWP) aimed at alleviating and reducing unemployment.Tenderers must allow for any costs for the employmentof unskilled labour as per the requirements of the EPWP program;1. 55% of unskilled labour to be women.2. 55% of unskilled labour to be youth aged between 18     and 35 years3. 2% of unskilled labour to be people living with disability 4. 100%  Unskilled labour utilised must reside withinthe boundaries of the Municipality Ward where this contract is executed, with preference to the local community closest or at the walking distance to the contract site. Wherever possible local skilled tradesmenare to be employed on this contract with the view to maximize utilization of local resources.(See E9) F:............................. V:............................ T:................","Item",0]
[]
[1,1,16,74,"E12.1 c Labour rate and payment intervalsThe contractor should ensure that labour rate paid to unskilled local labour is commensurate to the daily task.When determining the rate, consideration should be given to that EPWP beneficiaries are mostly bread winners in their families, as the program intends alleviating poverty. There should also be consideration that the labour rate promotes creation of expanded number of jobs created and person days of work.Contractors should make endeavours to ensure that labourers, particularly unskilled are remunerated on fortnight basis and prior notification be made should there be a shortfall on their wages.The labour rate for local unskilled shall also be determined in consideration of the location of the project, i.e. for projects implemented in urbanized municipalities will not be the same as that for rural municipalities.F:......................... V:........................ T:.......................","Item",0]
[]
[1,1,16,null,"12.2 LABOUR INTENSIVE CONSTRUCTION METHOD ","H3",0]
[]
[1,1,16,75,"E12.2 a Labour Intensive Construction (LIC) methodOn site there must a person(s) having competency inmanaging and implementing LIC methods. *Foreman @ NQF Level 4 the Unit Standard on   Implementing LIC methods on site.*Site Agent/ Managers @ NQF level  5 the Unit Standard on Manage Labour-Intensive Skills Programme both  must be CETA accreditedF:............................. V:............................ T:................","N/A",0]
[]
[1,1,17,76,"E12.2 b Labour Intensive Construction MethodThose parts of the contract to be constructed using Labour Intensive methods will be marked in the BoQ with letter LI (indicating Labour Intensive) against every item so designated. Such works will only be constructed using method so indicated. Reference to be made to Guidelines for the implementationof Labour Intensive Infrastructure projects under EPWP. \"Scope of Work in Respect of Work Relating to the Expanded Public Works Programme (EPWP)\"F:............................. V:............................ T:............................ ","N/A",0]
[]
[1,1,17,null,"12.3 RECORD KEEPING","H3",0]
[]
[1,1,17,77,"12.3.1 Every employer must keep in the project site office the following  minutes of site progress minutes; contractors’ monthly site progress reports; accurately recorded attendance register; proof of payment as means to verify authenticity of data in the EPWP Beneficiary form submitted with payment certificates. Copies of submitted EPWP beneficiary data forms should also be kept in the site office.  F:............................. V:...................T:.......................... ","N/A",0]
[]
[1,1,17,78,"12.3.2 The employer must keep this record for a period of at least three (3) years after the completion of the project in his/her office as the project site office would have been relocated. This should be safely kept for job creation data verifications and periodical audits on projects conducted by National and Provincial  Department of Public Works  after one (1) or two (2) quarters of submitting captured EPWP Data to the National EPWP coordinating Department.    F:........................... V:...................... T:...................... ","Item",0]
[]
[1,1,18,null,"E12.4 EPWP REPORTING as per EPWP DATA FORM","H3",0]
[]
[1,1,18,79,"At the end of each month as part of site progress report and to be attached to every contractors’ progress payment certificate; the contractor shall provide the principal agent & Public Works with a written records, as per EPWP data form; which will be reflecting, beneficiaries full name & surname; ID No and job description of labour employed by main contractor and sub-contractors on site. At the end of each month the contractor must submit the following documents to be attached to the Progress payment certificate:1. EPWP monthly data collection form 2. Worker monthly payment upload3. Worker monthly proof of payment  i.e 3.1 Acknowledgement of receipt of payment or3.2 Payslips 3.3 Bank statement highlighted the workers paid 4. Worker monthly training form 5. Monthly attendance register6. Certified copies of ID’s (once off)7. ID size photos (once off)8. Proof of UIF 9. Proof of COIDAF:....................... V:..................... T:.......................","Item",0]
[]
[1,1,19,null,"E12.5  EPWP PROMOTION","H3",0]
[]
[1,1,19,80,"12.5.1 EPWP signage board  EPWP Program at the project level shall always be promoted through have the projects signage board that embrace EPWP logo at the bottom, correct measurement for this signage board will be provided by the project leader during the site handing over meeting. the standard \"HELVETIVA Medium \" letters are to be used . Professional title to be 10 mm above line . Line thickness to be 8 mm thick . Space between bottom of the line and bottom of the lettering below the line has to be 100 mm. Letter sizes are as follows : Helvetian medium 100 mm black upper case to be for project name and owner . Helvetian medium 75mm black upper case only to be used for professional titles.Project name and owner shall be black lettering on white background board sizes are as follows : Board to be minimum 2000mm from ground level and to be constructed from reinforced formed chromadek panels minimum 0,6mm thick chromadek. The contractor is responsible for ensuring that the project board remains neatly and safely erected for the full duration including maintenance period, after which the project board and post are to be dismantled and handed to the client in good order.         F:........................ V:........................ T:........................","N/A",0]
[]
[1,1,19,81,"12.5.2 Branding of labour apparel  Contractor & Sub-contractors’ labourers shall be provided with EPWP branded Personal Protective Equipment (PPE), reflector vest with EPWP wording at the back is an ideal and cost effective means of promoting program on site. The contractor is then advised to price for both item 17.5.1 and 17.5.2  F:........................ V:....................... T:.........................","N/A",0]
[]
[1,1,21,null,"E12.6 COMMUNITY LIAISON OFFICER (CLO)","H3",0]
[]
[1,1,21,82,"UTILISATION OF A COMMUNITY LIAISON OFFICER  In addition to the requirements of Clause E9, contained in this document;   The Contractor shall allow for and pay any and all costs necessary for the engagement of the services of a Community Liaison Officer (CLO) for the full duration of this contract.  In the interest of providing a sound service to both the community and the Contractor, a CLO may only manage one project at a given time.  A CLO will be identified by the local structures of the ward areas and appointed following fair and transparent interviewing process, to be conducted in the presence of local structures and the contractor representative, in order to assist the Contractor in the procurement of any local labour, etc. required for this project. The Contractor is to liaise with the CLO and afford him any assistance needed in ensuring sound working relations with the local community.  Key Responsibilities of the CLO are envisaged to include and not necessary be limited to:  1. Assisting local leadership in conducting skills and resources audit which facilitates sourcing labour from within the ward or targeted areas for employment, as required by contractor.  2. Assisting in sourcing labour-only domestic sub-contractors and the procurement of materials from local resources, as required by the contractor.  3. Assisting the contractor by identifying areas of potential conflict and or threats to the project or to stakeholders in the project and recommend appropriate action to the contractor.  4. Assisting contractor and stakeholders in the project in the resolution of any conflict which may arise.  5. Establishing and ensuring that sufficient and open communication channels between the contractor and the work force are maintained.  6. Establish and ensuring that efficient and open communication channels between the contractor and the community are maintained  7. Identifying and reporting to the Contractor regarding issues where communication between stakeholder is necessary, recommend courses of action and facilitate such communications  8. Assisting the Contractor and the work force in the establishment of grievance procedures and necessary recommendation to the Contractor regarding the grievances and solution thereto.  9. Attending to site meetings and project implementation meetings as required by the Contractor and prepare periodic reports as may be required by the Contractor from time to time.  10. Attending to such other duties which are consistent with the functions of a CLO, as may be required by the Contractor from time to time.  Tenderers are to price twice the rate of unskilled local labour rate against this item for any and all costs arising out of compliance with the foregoing and in the event of a Tenderer failing to price against this item or making inadequate financial provision against this item for compliance as aforesaid, then no claim for costs or additional cost incurred will be entertained by the Head: Works  F:........................ V:......................... T:....................... ","Item",0]
[]
[1,1,22,null,"E12.7  SKILLS DEVELOPMENT ON SITE","H3",0]
[]
[1,1,22,83,"Contractor in conforming to the object of EPWP that its beneficiaries need to be capacitated with skills that will render them employable in the future. It is then the responsibility of the Contractor that mandatory life skills are provided to 100% of workforce on site and on the job training to labourers from whom the potential for further development has been identified. The latter is not mandatory to all as it covers technical skills.   Contractor should also make provision for the possibility that there might be local youth that will need to be placed on the project with an intention to be provided support towards improving their level of competency and productivity. Contractor shall also provide all necessary on-the-job training to targeted labour to enable such labour to master and advance on techniques required to undertake the work in accordance with requirements of the contract in a manner that does not compromise workers health and safety.  F:......................... V:........................ T:........................","Item",0]
[]
[1,1,22,null,"E12.8 LABOUR ONLY Sub Contracting for local emerging enterprises","H3",0]
[]
[1,1,22,null,"Tenderer’s are advised that this contract is subject to the Expanded Public Works Programme (EPWP) and the following criteria will apply: ",null,0]
[]
[1,1,23,null,"AFRICAN EQUITY OWNERSHIP","H4",0]
[]
[1,1,23,84,"a)  The Tenderer is to allow for  5% of the total value of works to be undertaken by a Priority Population Group.  This percentage excludes the costs of employing local unskilled labour. The allocation of this percentage from the Project, the screening of people, the selection of skills, will be for the Contractor to adjudicate.  b)  The Priority Population Group consists of women, youth and disabled people.  c)  The Contractor is to give first option for prospective PPG’s from the surrounding areas of the Project. Should there be insufficient suitable people fitting the criteria of PPG’s, the Contractor may hire people from further afield. This is to be done only after consultation with the Department of Works EPWP Co-ordinator and the Community Liaison Officer (CLO).  d)  A Mentor is to be employed by the Contractor, in consultation with the Department of Works for the purposes of quality control and liaison between the Contractor and the selected PPG’s on site. The mentor will be responsible for ensuring an acceptable level of quality workmanship and that such work carried out by the PPG's is executed within the time frames stipulated.   In so far as possible, the Contractor is encouraged to expand the PPG’s skills, knowledge and performance levels.  F:........................ V:........................ T:.......................","Item",0]
[]
[1,1,24,null,"TENDERER'S TO NOTE CONDITIONS","H4",0]
[]
[1,1,24,null,"a) The contract to be entered into between the Contractor and the PPG’s will be a LABOUR ONLY sub-contract.  b) The Contractor will be responsible for ensuring that all materials for use by the PPG’s in the works are to be on site timeously. The Contractor shall liaise with The Mentor and PPG to determine the nature and extent of materials required and the lead time necessary.  c) The Contractor shall be responsible for the overall programming of the Works and he is to allow for monitoring the PPG’s programme and progress.  d) In conjunction with the Mentor, he is to allow for the supervision and mentoring (where necessary) of the PPG to ensure quality and adherence to standard building practice  e) The Contractor is to allow for extra storage facilities on site for the PPG’s tools and equipment.  f) Basic tools shall be provided by the PPG’s and where these are not available; the Contractor will supply him with the necessary tools and equipment and deduct the costs thereof from the interim claims made by the PPG.  g) Work requiring specialized tools will be provided free of charge by the Contractor with the provision that these be returned upon completion of the Work.     ",null,0]
[]
[1,1,25,null,"CO-ORDINATION","H4",0]
[]
[1,1,25,85,"The Contractor is to co-ordinate the work of all the PPG’s, Sub-Contractors and Nominated Sub- Contractors appointed direct by the Employer in such a manner and at all times as will suit the building programme and he is to allow adequate access, for the PPG’s, where required, to carry out their work in an efficient manner as no claims for extras in this connection will be entertained.  F:........................  V:.......................  T:...................... ","Item",0]
[]
[1,1,25,null,"ATTENDANCE ","H4",0]
[]
[1,1,25,86,"The Contractor may allow for attendance upon the PPG’s concerned to execute the work. The Contractor is to allow the PPG’s the use of any scaffolding belonging to him while it remains so erected on the site.   Where scaffolding is necessary for the use by any PPG and the Contractor has not erected any for his own use or has removed same after his own use, the Contractor shall supply sufficient scaffolding to the PPG to be erected and dismantled by the PPG and returned to the Contractor.  This attendance upon PPG’s to execute the work is to include for the scaffolding provisions as aforesaid and, in addition, is to include for co-operating to the fullest extent with all the parties, attending on off-loading materials, providing suitable storage for tools and materials used by the PPG’s, use of general facilities such as latrines, etc., supply and cost of power, lighting, water and the like.  F:.........................  V:.......................  T:........................","Item",0]
[]
[1,1,26,null,"E12.9 EPWP CONTRACT FOR LABOUR","H3",0]
[]
[1,1,26,87,"It is compulsory that shortly after the contractor and or sub contractor has appointed local labour, the employment contract should be signed by both parties, prior to commencement with works on site. The employment contract forms part of the Ministerial Determination or from the regional EPWP officials. Each contract will lapse at the end of each financial year therefore requiring the Contractor  to do a renewal of each contract should the need of employment still exist for that particular labourer.  F:........................  V:......................  T:..........................","Item",0]
[]
[1,1,26,null,"E12.10  EPWP SCOPE OF WORK","H3",0]
[]
[1,1,26,null,"Contractors are to price any item on the Bill of Quantities having below, bearing in mind that they are regarded as  main sources of job creation, whether sub contracted or undertaken by the main contractor.",null,0]
[]
[1,1,26,88,"Elements on the scope of work where application of Labour Intensive Construction methods as  will indicated with letters (LI) are regarded feasible are as follows;  i)  Excavating trenches for foundations and any other civil works with the  depth not more than 1.5 m   ii)  All masonry works which include concrete mixing on site; brickwork; plastering; screed works; jointing; etc.  iii)  Painting, Plumbing, Ironmongery; roof cladding; glazing; tilling; carpentry; flooring; waterproofing; etc.  F:........................ V:........................ T:........................","Item",0]
[]
[1,1,28,89,"  Note: It is a general requirement of this contract that persons normally resident in the ward of the works (local labour) be given preference for employment on the contract. Provided, however, that should adequate and appropriate labour not be available within the ward, others may be employed subject to satisfactory proof being provided that every reasonable endeavour has been made to employ local labour (Local Sub-contractor(s); Skilled; Semi-Skilled and Unskilled). The contractor shall in consultation with the local community leaders with the purpose of negotiating with them regarding the utilization of local resources in the construction process. In this regard, the contractor shall furthermore give preference, wherever possible to the employment of single heads of households, women and youth as well as families declared as most indigent by War on Poverty/ Sukuma Sakhe program profiling process. The contractor should aim, in general, to maximise the involvement of the local community, however workers from other communities should not exceed 20% of all persons working on the project, where local employees possess skills at level of competency that meet contractors requirements.  Payment for the labour-intensive component of the works. Payment for works identified in the Scope of Work as being labour-intensive shall only be made in accordance with the provisions of the Contract if the works are constructed strictly in accordance with the provisions of the Scope of Work. Any non-payment for such works shall not relieve the Contractor in any way from his obligations either in contract or in delict.  Linkage of payment for labour-intensive component of works to submission of project data.  The Contractor’s payment invoices shall be accompanied by labour information for the corresponding period in a format specified by the employer. If the contractor chooses to delay submitting payment invoices, labour returns shall still be submitted as per frequency and timeframe stipulated by the Employer. The contractor’s invoices shall not be paid until all pending labour information has been submitted.  Applicable labour laws  The current Ministerial Determination (also downloadable at www.epwp.gov.za)  Expanded Public Works Programmes, issued in terms of the Basic Conditions of Employment Act of 1997 by the Minister of Labour in Government Notice , shall apply to works described in the scope of work as being labour-intensive and which are undertaken by unskilled or semi-skilled workers.  F:......................... V:....................... T:....................... ","Item",0]
[]
[1,1,28,null,"E13  HIV/AIDS AWARENESS","H3",0]
[]
[1,1,28,null,"Tenderers are to price against the following items for compliance with the SPECIFICATION FOR HIV/AIDS AWARENESS  bound into this document (The clauses referred to are those of the Specification for HIV/AIDS)",null,0]
[]
[1,1,28,90,"E13.1    Provide and maintain a condom dispenser in             terms of Clause 5.1a)              F:................... ... V:................... T:...................","Item",0]
[]
[1,1,28,91,"E13.2    Provide and maintain HIV/AIDS awareness posters  terms of Clause 5.1b)              F:................... V:................... T:................. ","Item",0]
[]
[1,1,28,92,"E13.3   HIV /Aids Awareness Programme on Site for notless than 90% of workers inclusive of all direct and indirect costs; Engage a qualified service provider as describedin the scope of works to conduct an HIV Awareness Programme  in terms of Clause 5.2.1a)             F:.................... V:................... T:...................","Item",0]
[]
[1,1,28,93,"E13.4   Arrange for workers to attend the HIVAwareness Programme in terms of Clause 5.2.1b)            F:..................  V:..................  T:.................","Item",0]
[]
[1,1,29,null,"E13  HIV/AIDS AWARENESS","H3",0]
[]
[1,1,29,94,"E13.5   Reporting            Prepare and attach to claims for payment a briefreport in terms of Clause 5.3 (see also HIV/STI Compliance Report includedwith this document).             F:................... V:..................... T:....................             Note: In the event that the contractor fails to satisfy the requirements of this specification, the employer (Head: Public Works) may apply any of the sanctions provided for in the contract. Sanctions may include the application of a financial penalty of .04% of the Contract Sum per calendar day of which the required reports has not been submitted.","Item",0]
[]
[1,1,29,null,"E14  OCCUPATIONAL HEALTH AND SAFETY ACT NO. 85 OF 1993","H3",0]
[]
[1,1,29,95,"Tenderers are to allow for costs in providing  a project specific ' Construction Phase Safety, Health and Environmental Plan' in accordance with  \"Section 2 - Specification Data associated with SANS 1921-1:2004\" clause C4.18 in \"Part C3 - Scope of Work\"  F:...................  V:.....................  T:.................... ","Item",0]
[]
[1,1,29,null,"E15  NOTICE BOARD, SITE OFFICE, ETC.","H3",0]
[]
[1,1,29,96,"Bidders are to allow for the provision and removal of a project notice board and a site office in accordance with the Principal Agent's requirements.  F:...................... V:.................... T:..................... ","Item",0]
[]
[1,1,30,null,"E16  IMPORTED MATERIALS AND EQUIPMENT","H3",0]
[]
[1,1,30,97,"Where imported items are listed in the tender documents, the tenderer shall provide all information called for, failing which the price of any such item, material or equipment shall be excluded from currency fluctuations. (Refer to T2.14 - Schedule of Imported Materials and Equipment.  F:..................  V:.....................  T:..........................","Item",0]
[]
[1,1,30,null,"E17  CONTRACT DOCUMENTS","H3",0]
[]
[1,1,30,98,"The drawings issues with these Bid documents do not comprise the complete set but serves as a guide only for Biding purposes and for indicating the scope of works to enable the Bidder to acquaint him with the nature and extent of the works and the manner in which they are to be executed. Should any part of the drawings not be clearly legible to the Bidder he shall, before submitting his Bid, obtain clarification in writing from the principal agent.   F:..................... V:................... T:..................... ","Item",0]
[]
[1,1,30,null,"E18  GENERAL PREAMBLES","H3",0]
[]
[1,1,30,99,"The Document Preambles will be the “ASAQS Model Preambles for Trades – 2008” and is obtainable from the various Regional Office’s of the Department of Public Works and shall be read in conjunction with the Bills of Quantities and be referred to for the full descriptions of work to be done and materials to be used.  F:.................... V:..................... T:..................... ","Item",0]
[]
[1,1,31,null,"E19  TRADE NAMES","H3",0]
[]
[1,1,31,100,"Wherever a Trade Name for any product has been described in the Bills of Quantities the Bidder's attention is drawn to the fact that any other product of equal quality may be used subject to the written approval of the Principal Agent being obtained prior to the closing date for submission of Bids.  F:..................... V:....................... T:....................... ","Item",0]
[]
[1,1,31,null,"E20  EXISTING PREMISES OCCUPIED","H3",0]
[]
[1,1,31,101,"Refer to Scope of Works  Part C3 of this Bid Document for information on the occupation of existing buildings.  F:................... V:.................... T:..................... ","Item",0]
[]
[1,1,31,null,"E21  INACCURATE AND DEFECTIVE WORK EXECUTED UNDER PREVIOUS CONTRACT","H3",0]
[]
[1,1,31,102,"The contractor shall, after taking possession of the site and before commencing the work, check all levels, liners, profiles and the like and satisfy himself as to the dimensional accuracy of all work executed under the previous contract which may affect his work. Should any inaccurate or defective work be found, the contractor shall immediately notify the principal agent in writing requesting his instructions with regard thereto and afford every facility to those rectifying such inaccurate or defective work.  F:.................... V:..................... T:..................... ","Item",0]
[]
[1,1,31,null,"E22  VIEWING THE SITE IN SECURITY AREAS","H3",0]
[]
[1,1,31,103,"If the site is situated in a security area and the Bidder must arrange with the Authorities to obtain permission to enter the site for Bidding purposes.  F:......................  V:....................  T:....................... ","Item",0]
[]
[1,1,32,null,"E23  COMMENCEMENT OF WORKS IN SECURITY AREAS","H3",0]
[]
[1,1,32,104,"If the works falls within a security area, the contractor must arrange with the Authorities and give the necessary notices before commencement of the works. Should the contractor fail to make such arrangements, admission to the site may be refused and any additional costs will be for the contractor's account.  F:......................  V:......................  T:..................... ","Item",0]
[]
[1,1,32,null,"E24  ENTRANCE PERMITS TO SECURITY AREAS","H3",0]
[]
[1,1,32,105,"If the works fall within a security area, the contractor shall obtain entrance permits for his personnel and workmen entering the area and shall comply with all regulations and instructions which may be issued from time to time regarding the protection of persons and property under control of the Authority.  F:.......................  V:.......................  T:...................... ","Item",0]
[]
[1,1,32,null,"E25  SECURITY CHECK OF PERSONNEL","H3",0]
[]
[1,1,32,106,"The principal agent may require the contractor to have his personnel and workmen, or a certain number of them, security classified. In the event of the principal agent requesting the removal of a person or persons from the works for security reasons, the contractor shall do so forthwith and shall thereafter ensure that such person or persons are denied access to the works and the site and/or to any document or information relating to the works.  F:....................... V:...................... T:....................... ","Item",0]
[]
[1,1,33,null,"E26  PROHIBITION ON TAKING PHOTOGRAPHS","H3",0]
[]
[1,1,33,107,"In terms of article 119 of the Defence Act, 44 of 1957, it is prohibited to sketch or to take photographs of any military site or installation or any building or civil works thereon or to be in possession of a camera or other apparatus used for taking photographs, except when authorised thereto by or on behalf of the Minister. The same prohibition is also applicable to all Correctional Institutions in terms of article 44.1(e) of the Correctional Services Act 8 of 1959.  F:........................ V:...................... T:...................... ","Item",0]
[]
[1,1,33,null,"E27  MANAGEMENT OF WATER","H3",0]
[]
[1,1,33,108," Water for Construction purposes must be obtained from alternative water sources (i.e. supply other than water that is produced and distributed by a regulated water service authority from a licenced water treatment works for human consumption), eg dams, rivers, boreholes, springs, rainwater harvesting, recycled sewerage water, etc. The alternative water source shall not be of an inferior quality / standard than that required for construction purposes. The client reserves the right through his agents to test such supplies or request certificates confirming the grade and nature of the water supply. Relevant knowledge of the respective area will be an advantage.   F:.....................  V:.....................  T:....................... ","Item",0]
[]
[1,1,34,null,"E28  ELECTRICITY CONSUMPTION","H3",0]
[]
[1,1,34,109,"The contractor will be responsible to remunerate the school with an amount of R 1200.00/month for electricityused on the site during the construction period and from site handover until works completion is reached and must make allowance in their preliminaries for such payment to the school on a monthly basis and if this is not paid, it will be deducted in the final account. The above mentioned electricity payments will onlybe applicable if the contractor make use of the school's electricity. However the school is not obligedto supply the contractor with electricity, and if so thecontractor must provide his own electricity for construction purposes. Contractors also need tofactor in the unavailability of electricity due to load shedding or any other disruptions and no claims withreference to any such disruptions will be entertained inrespect of time or money.   F:.....................  V:.....................  T:....................... ","Item",0]
[]
[]
[{"$nulls":4},"SUMMARY OF CATERGORIES"]
[{"$nulls":4},"Category :Fixed ___________"]
[{"$nulls":4},"Category :Value ___________"]
[{"$nulls":4},"Category :Time ___________"]
[]
[]
[1,1,{"$nulls":4},0,null,{"$f":"+I37","v":0}]
[]
[]
[2,1,35,null,"SECTION No. 2","H1",0]
[]
[2,1,35,null,"BILL No. 1 : ALTERATIONS","H1",0]
[]
[2,1,35,null,"MODEL PREAMBLES","H2",0]
[]
[2,1,35,null,"The tenderer is referred to the \"Model Preambles for Trades 2008\" for supplementary and comprehensive expansion of descriptions, appropriate provision for which shall be deemed to have been included in all relevant rates",null,0]
[]
[2,1,35,null,"SUPPLEMENTARY PREAMBLES","H2",0]
[]
[2,1,35,null,"Existing Furniture, Equipment, etc","H3",0]
[]
[2,1,35,null,"The Contractor shall not remove or damage any furniture, equipment or similar items that belong to the Department except when specifically described in the items to follow: The Contractor must give the Principal Agent sufficient notice if the removal of these items are required before any prescribed alterations can be done",null,0]
[]
[2,1,36,null,"Damage to existing finishes","H3",0]
[]
[2,1,36,null,"The Contractor will be held responsible for all damage however caused to existing finishes and fittings, etc. and he must make good all damage at his own expense to the approval of the Principal Agent.  Breaking down, demolition and alteration activities and tasks, hacking off of exitsing plaster, etc. is to be executed with care so as to prevent damage to remaining floor and wall surfaces and finishes (where these are to be retained). Tenders will be deemed to include allowance for any necessary protection of exitsing surfaces and structures as may be necessary to effect the above, as the cost of repairing damage to existing surfaces and structures will be solely for the Contractors account",null,0]
[]
[2,1,36,null,"Responsibility for site","H3",0]
[]
[2,1,36,null,"The Contractor is to note that upon possession of the site by himself, and extending until practical completion is achieved, he is solely responsible for the site, site security, general upkeep and cleaning of the site and all other responsibilities in maintaining a construction site in conformance with but not limited to, the Construction Regulations 2014, all local by-laws, all user client regulations, and all Client regulations and procedures. Tenderers are therefore urged to study all available material and to investigate the site fully and areas contiguous to the site, in order to determine the range and extent of responsibility. No additional monetary and/or time claims will be entertained in respect of the above",null,0]
[]
[2,1,36,null,"Explosives","H3",0]
[]
[2,1,36,null,"No explosives whatsoever may be used for demolition purposes unless otherwise stated",null,0]
[]
[2,1,37,null,"General","H3",0]
[]
[2,1,37,null,"The Contractor shall carry out the whole of the works with as little mess and noise as possible and with a minimum amount of disturbance to adjoining classroom blocks and their students. He shall provide proper protection of the works and provide, erect and remove when directed, any temporary tarpaulins that may be necessary during the progress of the works, all to the satisfaction of the Principal Agent",null,0]
[]
[2,1,37,null,"Water supply pipes and other piping that may be encountered and found necessary to disconnect or cut, shall be effectually stopped off or grubbed up and removed, and any new connections that may be necessary shall be made with proper fittings, to the satisfaction of the Principal Agent",null,0]
[]
[2,1,37,null,"Doors, fanlights, fittings, frames, linings, etc which are to be re-used shall be thoroughly overhauled before refixing including taking off, easing and rehanging, cramping up, re-wedging as required and making good cramps, dowels, etc, and easing, oiling, adjusting and repairing ironmongery as necessary, replacing any glass damaged in removal or subsequently and stopping up all nail and screw holes with tinted plastic wood to match timber, unless otherwise described. Re-painting or re-varnishing is given separately",null,0]
[]
[2,1,37,null,"\"Taking out and removing doors, windows, etc\" implies that the door, etc is to be carefully taken down together with the fame, linings, architraves, window sills, etc complete and where brick lintels occur, it must be supported and propped until the openings are built up or new doors or windows built in position",null,0]
[]
[2,1,37,null,"Prices for taking out and removing doors and frames shall include for removing door stops, cabin hooks, etc. and making good floor and wall finishes to match existing",null,0]
[]
[2,1,38,null,"\"Forming openings\" for doors or windows, etc implies that the plaster or any other covering is to be hacked off and an opening formed sufficient in size to receive the building in of the frame and cramps, and the forming of new dampproof courses, lintels, sills, etc. After building in of the new frame, the opening is to be built against the frame, plaster or faced brickwork to be made good both sides and reveals and floor screeds prepared for finishings to match existing",null,0]
[]
[2,1,38,null,"\"Making good\" implies that all necessary repairs are to be made to reinstate articles that may be damaged through the removal or otherwise, and the supplying of any new materials to match existing work, and is to include any necessary repairs to adjacent finishings such as floors, skirtings, plaster, painting, etc and such making good is to match adjoining work in all respects and in all trades",null,0]
[]
[2,1,38,null,"The Contractor will be required to take all dimensions affecting the existing buildings on the site and he will be held solely responsible for the accuracy of all such dimensions where used in the manufacture of new items (doors, windows, fittings, etc)",null,0]
[]
[2,1,38,null,"The Contractor to acknowledge that sequencing of the work will be necessary to accommodate the operational aspects of the school. The Contractor to accordingly factor the above requirement in the construction programme and pricing",null,0]
[]
[2,1,38,null,"\"Breaking down and removing\" walls, etc implies that the wall is to be taken down to the extent shown on the drawings or as may be described and that all necessary shoring is to be provided and allowed for to ensure the safety of the building during the pulling down or until new walls are erected and all portions of the remaining walls where distrubed or affected by the removal are to be made good and left ready for plaster or other finishings as described",null,0]
[]
[2,1,38,null,"Where removal is included in the heading, sub-heading or item description, prices shall be deemed to include for the necessary costs of removal and appropriate disposal of materials including but not limited to labour, transportation and disposal costs. No further claims in this regard will be entertained",null,0]
[]
[2,1,39,null,"\"Building up openings\" implies that after the removal of any doors, windows or screens that may be decribed to be taken down, the opening is to be filled up solid (or to the tickness as shown) with new brickwork and is to include all necessary cutting away to form toothings to thoroughly bond to the new work and new finishes to both sides as described.",null,0]
[]
[2,1,39,null,"Removal of asbestos material","H3",0]
[]
[2,1,39,null,"All preparatory work, alterations, etc., to existing asbestos cement roof sheeting, gutters, rainwater pipes, etc., is to be carried out strictly by an approved and certified specialist company and in accordance with statutory requirements (Occupational Health and Safety Act, 1993 - Asbestos Regulations 2001) and all necessary precautions must be taken when working with and disposing of asbestos cement products and the disposal of waste water resulting from cleaning operations, etc.",null,0]
[]
[2,1,39,null,"The following shall apply in respect of asbestos removal","H3",0]
[]
[2,1,39,null,"The removal of asbestos shall be carries out by a certified entity, registered in accordance with the Occupational Health and Safety Act. 1993 and the Asbestos Regulations 2001  Asbestos in all forms/building elements that is to be removed, shall be carried out in strict accordance with aforementioned regulation and a certificate issued by the entity as contemplated in the above, shall be provided per block for the removal thereof, where the term block shall in this context refer to any single, free standing building structure, regardless of size or purpose",null,0]
[]
[2,1,40,null,"Corresponding disposal certificates shall be issued by the facility at which the asbestos is disposed off, with said facility to, prior to the disposal of any asbestos material provide satisfactory proof that the facility is duly registered and fully compliant in terms of the act, to receive the asbestos material  Under no circumstances is the Contractor nor any of his duly authorised representatives to sell and/or give away asbestos material to any member/s of the school community, the community in general or the public at large. Should this be found to be occuring, the Contractor will be held responsible contractually and may further be prosecuted ciminally",null,0]
[]
[2,1,40,null,"The cost for complying with the above, and all requirements of regulation as reflected above is to be priced for in terms for removal of asbestos material. No further claims in this regard will therefore be entertained",null,0]
[]
[2,1,40,null,"(CPAP WORK GROUP NO. 102 UNLESS OTHERWISE STATED)","H2",0]
[]
[2,1,40,null,"TEMPORARY BARRIERS, SCREENS, ETC","H2",0]
[]
[2,1,40,null,"Temporary barriers, screens, etc including removal and allow for re-use","H3",0]
[]
[2,1,40,1,"SANS approved weld mesh type temporary barrier fencing 1,5m high fixed to and including 100mm diameter gum poles set securely min 300mm deep in ground at max 3m spacing including excavation, backfilling, etc","m",120,null,{"$f":"G446*H446","v":0}]
[]
[2,1,40,null,"DEMOLISH","H2",0]
[]
[2,1,40,null,"Demolish & remove existing","H3",0]
[]
[2,1,40,2,"2540 x 2540 x 620mm High Tank Stand","No",2,null,{"$f":"G452*H452","v":0}]
[]
[2,1,40,null,"REMOVAL OF EXISTING WORK","H2",0]
[]
[2,1,41,null,"Take out and remove doors, windows, etc from brickwork to remain","H3",0]
[]
[2,1,41,3,"Timber door and metal door frame 0,9 x 2,1m high M140 block wall","No",14,null,{"$f":"G458*H458","v":0}]
[]
[2,1,41,null,"Take down and remove glass & mirrors","H3",0]
[]
[2,1,41,4,"Glass from steel windows including cleaning out rebates & preparing for new glass (new glass elsewhere)","m2",16,null,{"$f":"G462*H462","v":0}]
[]
[2,1,41,null,"Take down and remove roofs, floors, panelling, ceilings, partitions, etc","H3",0]
[]
[2,1,41,5,"Existing IBR ceiling.","m2",236,null,{"$f":"G466*H466","v":0}]
[]
[2,1,41,6,"Gypsum plasterboard ceilings including cornices, timber brandering, etc not exceeding 3,5m high","m2",44,null,{"$f":"G468*H468","v":0}]
[]
[2,1,41,7,"Fascia boards and fixings","m",129,null,{"$f":"G470*H470","v":0}]
[]
[2,1,41,8,"Barge boards and fixings","m",40,null,{"$f":"G472*H472","v":0}]
[]
[2,1,41,9,"Rainwater gutters and fixings","m",171,null,{"$f":"G474*H474","v":0}]
[]
[2,1,41,10,"Rainwater downpipes and fixings","m",30,null,{"$f":"G476*H476","v":0}]
[]
[2,1,41,null,"Hack up/off & remove grano, screed, plaster & prepare surface to receive new","H3",0]
[]
[2,1,41,11,"Screed from floors in patches","m2",131,null,{"$f":"G480*H480","v":0}]
[]
[2,1,41,12,"Internal plaster to walls in patches","m2",28,null,{"$f":"G482*H482","v":0}]
[]
[2,1,42,13,"External plaster to wall in patches","m2",28,null,{"$f":"G484*H484","v":0}]
[]
[2,1,42,14,"Vinyl flooring from floors in patches","m2",120,null,{"$f":"G486*H486","v":0}]
[]
[2,1,42,null,"Alter Openings","H3",0]
[]
[2,1,42,15,"Alter opening in one brick wall where 1 300 x 1 100mm high steel window removed to form opening for new kitchen roller shutter door size 2 500 x 1 115mm high overall by breaking out blockwork on both sides and bottom, including making good cement plaster into reveals and with Reinforced brick lintel.","No",1,null,{"$f":"G490*H490","v":0}]
[]
[2,1,42,null,"SERVICE","H2",0]
[]
[2,1,42,null,"Windows","H3",0]
[]
[2,1,42,16,"Service steel window including lubricating ironmongery and leave in workable condition (replacement of damaged/ missing ironmongery measured elsewhere)","No",58,null,{"$f":"G496*H496","v":0}]
[]
[2,1,42,null,"Inspection and Repairs of Existing Roofs","H3",0]
[]
[2,1,42,17,"The contractor is to carry out an inspection of the existing roofs, remove and replace all loose metal sheets, remove and replace damaged sisalation, and roof screws with approved new (8mm diameter with 26mm washers and rubber gasket) including the re-fixing of all looses roof sheets, in accordance to the manufacturer's instructions.","m2",849,null,{"$f":"G500*H500","v":0}]
[]
[2,1,42,null,"SUNDRIES","H2",0]
[]
[2,1,43,null,"Desludging","H3",0]
[]
[2,1,43,null,"Debris and rubble covering the access to the pit latrine must be cleared and disposed of at a registered landfill site. The pit latrine is to be accessed by the removable cover or removal of the access concrete slab. The solids that cannot be pumped out must be dug out by mechanical means. When the contents of the pit or tank are to be pumped out and the sludge is too firm or dry it must be jetted with a high pressure hose and agitate the mixture of sludge and water with the end of the suction  hose before pumping begins. After pumping out the contents of the pit, the tanker must be driven to a legally authorised safe-disposal site, such as an off-site sewage treatment works, where the contents can be emptied. Dry pits or pits containing large quantities of solid materials incluidng stones, sticks, plastic bags, debris, etc. must be cleaned by individuals with hand held mechanical machinery with the appropriate protective gear in terms of the OHS Act as well as certified to work in confined spaces. Contractors are to ensure that the vacuum tankers are suitable to manoeuvre close to latrines without compromising the integrity of the pit latrine",null,0]
[]
[2,1,43,18,"Clean out pit latrine by desludging. Contractor to price per toilet seat approximately 2Kl in volume","No",16,null,{"$f":"G508*H508","v":0}]
[]
[2,1,43,null,"Temporary Accommodation","H3",0]
[]
[2,1,43,null,"Provide temporary accommodation units (park homes) for Educational Facilities during construction in phases as herewith measured including leveling of area, positioning on site and connected electrical supply including issue of electrical compliance certificate. Park homes to be standard size class room size and needs to be minimum 7 x 7m or nearest standard size","H3",0]
[]
[2,1,43,19,"Rental of temporary accommodation approximate size 7 x 7m wide, including standard windows, burglar bars, curtains and tracks, two tier steps for access, light fittings, electrical certificate of compliance, for a period of six (6) calendar months","No",3,null,{"$f":"G514*H514","v":0}]
[]
[2,1,44,20,"Two tier steps for six (6) Calendar months","No",3,null,{"$f":"G516*H516","v":0}]
[]
[2,1,44,21,"Transportation and establishment on site and de-establishment on completion temporary accommodation units approximate size 7 x 7m wide","No",3,null,{"$f":"G518*H518","v":0}]
[]
[2,1,44,null,"Temporary Ablutions","H3",0]
[]
[2,1,44,22,"Rental of temporary plastic ablutions approximate size 1,2 x 1,2 x 2,3m high for the sole use by the school, for 3 months inclusive of  servicing on a regular basis. Ablutions are to be kept clean and in operation for the duration","No",8,null,{"$f":"G522*H522","v":0}]
[]
[2,1,44,23,"Transportation and establishment on site and de-establishment on completion temporary ablutions approximate size 1,2 x 1,2 x 2,3m high","No",8,null,{"$f":"G524*H524","v":0}]
[]
[2,1,{"$nulls":4},0,null,{"$f":"SUM(I445:I525)","v":0}]
[]
[3,1,46,null,"SECTION No. 3","H1",0]
[]
[3,1,46,null,"BILL No. 1 : ROOF COVERINGS","H1",0]
[]
[3,1,46,null,"MODEL PREAMBLES","H2",0]
[]
[3,1,46,null,"The tenderer is referred to the \"Model Preambles for Trades 2008\" for supplementary and comprehensive expansion of descriptions, appropriate provision for which shall be deemed to have been included in all relevant rates",null,0]
[]
[3,1,46,null,"SUPPLEMENTARY PREAMBLES","H2",0]
[]
[3,1,46,null,"Sheeting","H3",0]
[]
[3,1,46,null,"The roof sheeting shall be 0,55mm AZ150 ZincAl or equal approved IBR 686 profile roll-formed in continuous lengths and cut to length by a pneumatic cut-off process from certified Z275 galvanized steel complying with ISQ 550 (3T). A certificate verifying compliance shall be issued by the manufacturer. ",null,0]
[]
[3,1,46,null,"Finish for AZ150 Zincalume","H3",0]
[]
[3,1,46,null,"The profile shall be supplied with a paint finish G550 consisting of a full top coat \"Colourplus\" or equal approved silicone modified polyester Colour: To match existing on one side and Cool Grey backing to other",null,0]
[]
[3,1,47,null,"Assembly","H3",0]
[]
[3,1,47,null,"The AZ150 ZincAl sheets shall be fixed to every purlin strictly in accordance with manufacturer's specifications. Holes through sheeting are to be drilled and NO punching of holes are allowed. 8mm Diameter x 75mm long fixing screws with 26mm diameter washer and rubber gasket are to be used. Every precaution shall be taken to prevent damage to roof sheets during all stages of construction. Duck boards should be used when necessary to protect the sheeting from damage. Sheeting which has become deformed or damaged in any way, shall be replaced",null,0]
[]
[3,1,47,null,"Flashings","H3",0]
[]
[3,1,47,null,"ROOF COVERING","H2",0]
[]
[3,1,47,null,"(CPAP WORK GROUP NO. 125 UNLESS OTHERWISE STATED)","H2",0]
[]
[3,1,47,null,"PROFILED METAL SHEETING AND ACCESSORIES","H2",0]
[]
[3,1,47,null,"0,55mm Zincalume IBR 686 sheeting and accessories with \"Colorplus\"  finish (colour : Standard colour on one side and CoolGrey backing to other), in long lengths fixed using Class 3 Climaseal screws (8mm diameter with 26mm diameter washer and rubber gasket) as per manufacturer's recommendations for coastal areas to 50 x 76mm treated SA Pine purlins @ 900mm centres on Sisalation elsewhere measured ","H3",0]
[]
[3,1,47,1,"Ridge covering 650mm girth, screwed through sheet to purlins","m",62,null,{"$f":"G560*H560","v":0}]
[]
[3,1,48,2,"Color coded metal angle flashing made from the same roofing sheet material and the same color with size 200 x 100mm and inner drip edges as well as outer drip edge, bent at 2.5 degrees respectively, fixed to fascia through the roof sheeting to the purlins.  ","m",85,null,{"$f":"G562*H562","v":0}]
[]
[3,1,48,3,"Moulded narrow and broad rib polyethelene filler blocks","m",131,null,{"$f":"G564*H564","v":0}]
[]
[3,1,48,4,"Moulded Sondor Metal Polyclosures for IBR roof sheeting profile color coated.","m",85,null,{"$f":"G566*H566","v":0}]
[]
[3,1,{"$nulls":4},0,null,{"$f":"SUM(I559:I567)","v":0}]
[]
[3,2,50,null,"SECTION No. 3","H1",0]
[]
[3,2,50,null,"BILL No. 1 : CARPENTRY & JOINERY","H1",0]
[]
[3,2,50,null,"MODEL PREAMBLES","H2",0]
[]
[3,2,50,null,"The tenderer is referred to the \"Model Preambles for Trades 2008\" for supplementary and comprehensive expansion of descriptions, appropriate provision for which shall be deemed to have been included in all relevant rates",null,0]
[]
[3,2,50,null,"CARPENTRY AND JOINERY","H2",0]
[]
[3,2,50,null,"(CPAP WORK GROUP NO. 126 UNLESS OTHERWISE STATED)","H2",0]
[]
[3,2,50,null,"EAVES, VERGES, ETC","H2",0]
[]
[3,2,50,null,"Sawn Softwood","H3",0]
[]
[3,2,50,1,"76 x 114mm false rafter fixed to rafter ends to receive fascia boards (measured elsewhere) ","m",171,null,{"$f":"G586*H586","v":0}]
[]
[3,2,50,null,"Approved fibre cement","H3",0]
[]
[3,2,50,2,"12 x 225mm Fascias to match existing including H-profile jointing strips","m",169,null,{"$f":"G590*H590","v":0}]
[]
[3,2,50,3,"50 x 50mm Eaves closer purlins","m",29,null,{"$f":"G592*H592","v":0}]
[]
[3,2,50,4,"Hurricane clips","No",315,null,{"$f":"G594*H594","v":0}]
[]
[3,2,51,null,"DOORS ETC","H2",0]
[]
[3,2,51,null,"Contractor to confirm door size on site prior to purchasing as any adjustment required to be made to the doors should be made by the manufacturer and not carried out on site",null,0]
[]
[3,2,51,null,"SANS approved Meranti","H3",0]
[]
[3,2,51,5,"44mm Framed ledged braced door with 44 x 146mm top rail and stiles, 22 x 108mm braces, 22 x 146mm lock rail, 22 x 222mm bottom rail, 22 x 70mm tongue in groove and v-jointed boarding Size 813 x 2 032mm high","No",14,null,{"$f":"G602*H602","v":0}]
[]
[3,2,{"$nulls":4},0,null,{"$f":"SUM(I585:I603)","v":0}]
[]
[3,3,53,null,"SECTION No. 3","H1",0]
[]
[3,3,53,null,"BILL No. 2 : CEILINGS, PARTITIONS & ACCESS FLOORING","H1",0]
[]
[3,3,53,null,"MODEL PREAMBLES","H2",0]
[]
[3,3,53,null,"The tenderer is referred to the \"Model Preambles for Trades 2008\" for supplementary and comprehensive expansion of descriptions, appropriate provision for which shall be deemed to have been included in all relevant rates",null,0]
[]
[3,3,53,null,"SUPPLEMENTARY PREAMBLES","H2",0]
[]
[3,3,53,null,"Descriptions:","H3",0]
[]
[3,3,53,null,"Items described as \"nailed\" shall be deemed to be fixed with hardened steel nails or pins or shot pinned to brickwork or concrete",null,0]
[]
[3,3,53,null,"Trade Names","H3",0]
[]
[3,3,53,null,"Where trade names are specified equal materials approved by the Principal Agent may be used",null,0]
[]
[3,3,53,null,"CEILINGS","H2",0]
[]
[3,3,53,null,"(CPAP WORK GROUP NO. 128 UNLESS OTHERWISE STATED)","H2",0]
[]
[3,3,53,null,"CEILING INSULATION","H2",0]
[]
[3,3,53,null,"Approved flexible non-combustible lightweight insulation","H3",0]
[]
[3,3,53,1,"100mm  Insulation loosely laid on top of brandering between roof timbers etc strictly in accordance with the manufacturer's detail and specification","m2",580,null,{"$f":"G632*H632","v":0}]
[]
[3,3,54,null,"NAILED UP CEILINGS","H2",0]
[]
[3,3,54,null,"9mm \"Rhino\" or equal approved gypsum plasterboard with taped & skimmed joints","H3",0]
[]
[3,3,54,2,"Ceilings including 38 x 38mm sawn softwood brandering at 400mm centres in both directions, fixed to 38 x 38mm vertical timber supports bolted to truss, not exceeding 1m below timber trusses","m2",580,null,{"$f":"G638*H638","v":0}]
[]
[3,3,54,3,"Extra  over  ceiling  for  600  x  600mm trap door","No",9,null,{"$f":"G640*H640","v":0}]
[]
[3,3,54,null,"Gypsum Plasterboard Cornice","H3",0]
[]
[3,3,54,4,"75mm Coved cornice","m",91,null,{"$f":"G644*H644","v":0}]
[]
[3,3,{"$nulls":4},0,null,{"$f":"SUM(I631:I645)","v":0}]
[]
[3,4,56,null,"Section No. 3","H1",0]
[]
[3,4,56,null,"Bill No. 3 : FLOOR COVERINGS, WALL LININGS, ETC ","H1",0]
[]
[3,4,56,null,"MODEL PREAMBLES","H2",0]
[]
[3,4,56,null,"The tenderer is referred to the \"Model Preambles for Trades 2008\" for supplementary and comprehensive expansion of descriptions, appropriate provision for which shall be deemed to have been included in all relevant rates",null,0]
[]
[3,4,56,null,"SUPPLEMENTARY PREAMBLES","H2",0]
[]
[3,4,56,null,"Proprietary products in descriptions:","H4",0]
[]
[3,4,56,null,"Proprietary products shall be used as specified. Substitute products of similar quality and specification may only be used with prior approval by the Principal Agent.",null,0]
[]
[3,4,56,null,"Cleaning:","H4",0]
[]
[3,4,56,null,"Rates for floor covering shall include for proper cleaning on completion.",null,0]
[]
[3,4,56,null,"VINYL FLOOR COVERINGS","H2",0]
[]
[3,4,56,null,"2.5mm thick x 300mm x 300mm wide semi- flexible vinyl floor tiles laid in acrylic adhesive spread with trowel having 1.5mm x 1.5mm x 1.5mm triangular notches at 4.00mm centres as per Architectural and Manufacturers specifications:","H3",0]
[]
[3,4,56,1,"On smooth screeded floors.","m2",120,null,{"$f":"G670*H670","v":0}]
[]
[3,4,56,null,"POLISH, SEALERS, ETC","H2",0]
[]
[3,4,57,null,"Clean by stripping and sealing and apply three coats water based copolymer emulsion or other approved sealer:","H3",0]
[]
[3,4,57,2,"On vinyl flooring.","m2",120,null,{"$f":"G676*H676","v":0}]
[]
[3,4,{"$nulls":4},0,null,{"$f":"SUM(I669:I677)","v":0}]
[]
[3,5,59,null,"SECTION No. 3","H1",0]
[]
[3,5,59,null,"BILL No. 4 : IRONMONGERY","H1",0]
[]
[3,5,59,null,"MODEL PREAMBLES","H2",0]
[]
[3,5,59,null,"The tenderer is referred to the \"Model Preambles for Trades 2008\" for supplementary and comprehensive expansion of descriptions, appropriate provision for which shall be deemed to have been included in all relevant rates",null,0]
[]
[3,5,59,null,"SUPPLEMENTARY PREAMBLES","H2",0]
[]
[3,5,59,null,"Keys/Locks","H3",0]
[]
[3,5,59,null,"Each lock is to be distinctly numbered with consecutive numbers and each key is to be stamped with the corresponding number to the lock that it controls. All locks are to have two keys",null,0]
[]
[3,5,59,null,"Trade Names","H3",0]
[]
[3,5,59,null,"Where trade names are specified other ironmongery approved by the Principal Agent may be used",null,0]
[]
[3,5,59,null,"Fixing","H3",0]
[]
[3,5,59,null,"Fixing of ironmongery is deemed to be fixed to timber unless otherwise described",null,0]
[]
[3,5,59,null,"IRONMONGERY","H2",0]
[]
[3,5,59,null,"(CPAP WORK GROUP NO. 132 UNLESS OTHERWISE STATED)","H2",0]
[]
[3,5,59,null,"HINGES, BOLTS, ETC","H2",0]
[]
[3,5,60,null,"SABS approved","H3",0]
[]
[3,5,60,1,"75 x 102mm Stainless steel hinge","No",26,null,{"$f":"G710*H710","v":0}]
[]
[3,5,60,2,"150mm Stainless steel cabin hook","No",14,null,{"$f":"G712*H712","v":0}]
[]
[3,5,60,null,"LOCKS","H2",0]
[]
[3,5,60,null,"SABS approved","H3",0]
[]
[3,5,60,3,"Three lever mortice lockset and furniture to external door","No",14,null,{"$f":"G718*H718","v":0}]
[]
[3,5,60,null,"HANDLES","H2",0]
[]
[3,5,60,null,"SABS approved","H3",0]
[]
[3,5,60,4,"\"AL5515-111 BBAS Dove\" Set of two 111mm pull handles fixed back to back","No",13,null,{"$f":"G724*H724","v":0}]
[]
[3,5,60,null,"PINNING BOARDS, WRITING BOARDS, PROJECTION SCREENS, ETC ( Provisional)","H2",0]
[]
[3,5,60,5,"2400 x 1200mm High, wall mounted aluminium framed pinning board. ","No",9,null,{"$f":"G728*H728","v":0}]
[]
[3,5,60,6,"2420 x 1220mm fixed projection white board (non reflective) aluminium framed, magnetic surface (centre board) complete with (x2) 1210 x 1220mm swing leaf aluminium framed magnetic chalk boards (without any lines or graphics, etc) with heavy duty hinges and 2250mm one complete aluminium pen tray to the centre board.","No",8,null,{"$f":"G730*H730","v":0}]
[]
[3,5,61,7,"Magnetic Starter Pack (x1 Full Complete Set) consisting of:  4 x White board markers (Red, Green, Black, Blue) 1 x Cleaning Cloth 1 x Magnetic Eraser 1 x Cleaning Fluid 250ml 4 x Moulded magnets d day","No",8,null,{"$f":"G732*H732","v":0}]
[]
[3,5,61,null,"WINDOW FITTINGS","H2",0]
[]
[3,5,61,null,"SABS approved","H3",0]
[]
[3,5,61,8,"Ref B3680 Brass plated sliding stay to existing steel window ","No",13,null,{"$f":"G738*H738","v":0}]
[]
[3,5,61,9,"Ref B3681 Brass plated sash fastner to existing steel window ","No",9,null,{"$f":"G740*H740","v":0}]
[]
[3,5,61,10,"Ref B3676 Brass plated casement stay to existing steel window ","No",8,null,{"$f":"G742*H742","v":0}]
[]
[3,5,61,11,"Brass plated window handle to existing steel window ","No",17,null,{"$f":"G744*H744","v":0}]
[]
[3,5,61,null,"SUNDRIES","H2",0]
[]
[3,5,61,null,"SABS approved","H3",0]
[]
[3,5,61,12,"38mm Diameter rubber floor/wall mounted door stop ","No",10,null,{"$f":"G750*H750","v":0}]
[]
[3,5,61,null,"PUSH PLATES AND KICKING PLATES","H2",0]
[]
[3,5,62,null,"\"Solid\"","H3",0]
[]
[3,5,62,13,"800mm x 200mm high x 2mm aluminium screw mounted kick plate. ","No",28,null,{"$f":"G756*H756","v":0}]
[]
[3,5,{"$nulls":4},0,null,{"$f":"SUM(I709:I757)","v":0}]
[]
[3,6,64,null,"SECTION No. 3","H1",0]
[]
[3,6,64,null,"BILL No. 5 : METALWORK","H1",0]
[]
[3,6,64,null,"MODEL PREAMBLES","H2",0]
[]
[3,6,64,null,"The tenderer is referred to the \"Model Preambles for Trades 2008\" for supplementary and comprehensive expansion of descriptions, appropriate provision for which shall be deemed to have been included in all relevant rates",null,0]
[]
[3,6,64,null,"METALWORK","H2",0]
[]
[3,6,64,null,"(CPAP WORK GROUP NO. 136 UNLESS OTHERWISE STATED)","H2",0]
[]
[3,6,64,null,"GALVANIZED PRESSED STEEL DOOR FRAMES","H2",0]
[]
[3,6,64,null,"1,6mm galvanised mild steel standard pressed jamb lining with double rebates to suit one brick wall:","H3",0]
[]
[3,6,64,1,"Frame for door 813 x 2032mm high.","No",14,null,{"$f":"G776*H776","v":0}]
[]
[3,6,64,null,"GALVANISED MILD STEEL GATES","H2",0]
[]
[3,6,65,null,"Gate constructed from hot-dipped galvanized mild steel, consisting of 40 x 30 x 2mm thick rectangular hollow section to outer frame and horizontal rails. Infill to be 8 No. continuous 10mm diameter galvanised mild steel rods passing through and welded to horizontal rails and welded to outer frame. Lock housing to be formed of (2 Off) 10 x 180 x 3mm galvanised mild steel plates welded to finish flush with each face of the gate and is to have the necessary cut-outs for the lock deadbolt and Euro Profile cylinder.Frame stile to hinge side to be 30 x 30 x 2mm thick galvanised mild steel hollow square section 2m long, bolted to wall with (4 Off) expansion bolts. 30 x 30 x 2mm thick galvanised mild steel hollow square section 260mm long, twice bolted to wall as lock keep. End caps to be provided to both the frame stile and the lock keep.1,5 pairs galvanised mild steel pintle hinges welded to gate and frame stile. Pin of top hinge to be inverted. (1 Off) N302 Union Euro Profile Cylinder Gate Lock with LH5240-N302 housing and 2 x 18SC Union double cylinder. (1 Off) Halstead 166SC cabin hook and eye with cabin hook screwed to 100 x 70 x 32mm Meranti block plugged and screwed to wall, and eye welded to leading edge of gate outer frameGate is to be cleaned down on completion and left unpainted","H3",0]
[]
[3,6,65,2,"Single gate size 1 000 x 2 000mm complete fixed to blockwork","No",10,null,{"$f":"G782*H782","v":0}]
[]
[3,6,65,null,"GALVANIZED STEEL BURGLAR BARS","H2",0]
[]
[3,6,65,null,"4,7mm x 19mm galvanised mild steel burglar bars welded to window frame over both opening and fixed sections of window horizontally","H3",0]
[]
[3,6,65,3,"Bars at 150mm centres to suit window 1,0 x 1,25m high ","m",304,null,{"$f":"G788*H788","v":0}]
[]
[3,6,66,null,"GAS CAGES","H2",0]
[]
[3,6,66,4,"Gas cage size 800 x 1500 x 1800mm high complete including concrete base with opening gate and lock.","No",1,null,{"$f":"G792*H792","v":0}]
[]
[3,6,66,null,"ROLLER SHUTTER DOORS","H2",0]
[]
[3,6,66,null,"Steel roller shutter doors:","H3",0]
[]
[3,6,66,null,"Note: The contractor is to check on site measurements before placing of order.","H4",0]
[]
[3,6,66,5,"Push-up hot dip galvanised steel roller shutter door to suit opening size 2,500 x 1,115mm high, with overhead box, with 0.8mm thick slats, 75mm wide side guides and two barrel bolts including extruded aluminium T-bar formed of 40 x 40mm angle iron, with rubber seal.","No",1,null,{"$f":"G800*H800","v":0}]
[]
[3,6,66,null,"GALVANISED MILD STEEL POSTS, ETC","H2",0]
[]
[3,6,66,null,"Posts","H3",0]
[]
[3,6,66,6,"75 x 75 x 3600mm High posts including base plates and slotted to suite beam","No",8,null,{"$f":"G806*H806","v":0}]
[]
[3,6,66,null,"Sundries:","H3",0]
[]
[3,6,66,7,"10 x 180mm Mild steel bolts and nuts","No",32,null,{"$f":"G810*H810","v":0}]
[]
[3,6,66,null,"PROVISIONAL SUMS","H2",0]
[]
[3,6,66,8,"Provide an amount of R120,000.00 (One Hundred and Twenty Thousand Rand) for the supply and install of one (1) smart interactive board (screen) to be installed in the team teaching or general multi-purpose classroom or standard classroom. ","Item",1,null,{"v":120000,"d":"R120,000.00"}]
[]
[3,6,66,9,"Allow for profit and general attendance","%IT",1,null,{"$f":"I814*H816","v":0}]
[]
[3,6,67,10,"Provide an amount of R10,000.00 (Ten Thousand Rand) for training to be given on the functioning of the smart interactive screen.","Item",1,null,{"v":10000,"d":"R10,000.00"}]
[]
[3,6,67,11,"Allow for profit and general attendance","%IT",1,null,{"$f":"I818*H820","v":0}]
[]
[3,6,{"$nulls":4},0,null,{"$f":"SUM(I775:I820)","v":{"v":130000,"d":"R130,000.00"}}]
[]
[3,7,69,null,"SECTION No. 3","H1",0]
[]
[3,7,69,null,"BILL No. 6 : PLASTERING","H1",0]
[]
[3,7,69,null,"MODEL PREAMBLES","H2",0]
[]
[3,7,69,null,"The tenderer is referred to the \"Model Preambles for Trades 2008\" for supplementary and comprehensive expansion of descriptions, appropriate provision for which shall be deemed to have been included in all relevant rates",null,0]
[]
[3,7,69,null,"PLASTERING","H2",0]
[]
[3,7,69,null,"(CPAP WORK GROUP NO. 142 UNLESS OTHERWISE STATED)","H2",0]
[]
[3,7,69,null,"GRANOLITHIC","H2",0]
[]
[3,7,69,null,"Granolithic screeds on concrete","H3",0]
[]
[3,7,69,null,"Chip loose material away untill a dense uniform surface of concrete is obtained. Feathered edges shall be saw cut to form surfaces perpendicular to the concrete (minimum 20mm). All loose material and dust to be removed by water. The cavity shall then be filled with a non-shrink cementitious grout","H3",0]
[]
[3,7,69,1,"30mm Screed on floors in patches","m2",131,null,{"$f":"G842*H842","v":0}]
[]
[3,7,69,null,"INTERNAL PLASTER","H2",0]
[]
[3,7,69,null,"Cement plaster trowelled smooth on brickwork ","H3",0]
[]
[3,7,69,2,"On walls in small areas","m2",28,null,{"$f":"G848*H848","v":0}]
[]
[3,7,69,null,"EXTERNAL PLASTER","H2",0]
[]
[3,7,70,null,"Cement plaster trowelled smooth on brickwork ","H3",0]
[]
[3,7,70,3,"On walls in small areas","m2",28,null,{"$f":"G854*H854","v":0}]
[]
[3,7,{"$nulls":4},0,null,{"$f":"SUM(I841:I855)","v":0}]
[]
[3,8,72,null,"SECTION No. 3","H1",0]
[]
[3,8,72,null,"BILL No. 7 : PLUMBING AND DRAINAGE","H1",0]
[]
[3,8,72,null,"MODEL PREAMBLES","H2",0]
[]
[3,8,72,null,"The tenderer is referred to the \"Model Preambles for Trades 2008\" for supplementary and comprehensive expansion of descriptions, appropriate provision for which shall be deemed to have been included in all relevant rates",null,0]
[]
[3,8,72,null,"PLUMBING AND DRAINAGE","H2",0]
[]
[3,8,72,null,"(CPAP WORK GROUP NO. 148 UNLESS OTHERWISE STATED)","H2",0]
[]
[3,8,72,null,"RAINWATER DISPOSAL","H2",0]
[]
[3,8,72,null,"Seamless aluminium","H3",0]
[]
[3,8,72,1,"150 x 150mm Box gutters with white baked enamel finish fixed with concealed brackets","m",171,null,{"$f":"G874*H874","v":0}]
[]
[3,8,72,2,"100 x 76mm Fluted aluminium downpipes with white baked enamel finish","m",30,null,{"$f":"G876*H876","v":0}]
[]
[3,8,72,3,"Extra over eaves gutter for stopped end","No",12,null,{"$f":"G878*H878","v":0}]
[]
[3,8,72,4,"Extra over eaves gutter for drop box suitable for 150 x 150mm box gutter","No",10,null,{"$f":"G880*H880","v":0}]
[]
[3,8,72,5,"Extra over rainwater downpipe for bends","No",20,null,{"$f":"G882*H882","v":0}]
[]
[3,8,73,6,"Extra over rainwater downpipe for shoes","No",1,null,{"$f":"G884*H884","v":0}]
[]
[3,8,73,null,"SABS approved","H3",0]
[]
[3,8,73,7,"5 000 Litre Vertical polyethylene water storage tank complete, fitted with and including 20mm PVC Ball Valve and 90° Angle HDPE spout on concrete tank stand (elsewhere measured) and tying down with 4mm diameter galvanised wire looped through 15mm hose enclosed steel link chain and secured to each corner of tank stand with a Y10 reinforcing rod twice bent and cast into concrete.","No",6,null,{"$f":"G888*H888","v":0}]
[]
[3,8,73,8,"2 500 Litre Vertical polyethylene water storage tank complete, fitted with and including 20mm plastic ball valve and 90 deg HDPE Spout suitable for padlocking and setting in position on concrete tank stand (elsewhere measured) and tying down with 4mm diameter galvanised wire looped through 15mm hose enclosed steel link chain and secured to each corner of tank stand with a Y10 reinforcing rod twice bent and cast into concrete ","No",2,null,{"$f":"G890*H890","v":0}]
[]
[3,8,73,9,"Hole through top of tank lid for 75mm diameter rainwater pipe","No",8,null,{"$f":"G892*H892","v":0}]
[]
[3,8,{"$nulls":4},0,null,{"$f":"SUM(I873:I893)","v":0}]
[]
[3,9,75,null,"SECTION No. 3","H1",0]
[]
[3,9,75,null,"BILL No. 8 : GLAZING","H1",0]
[]
[3,9,75,null,"MODEL PREAMBLES","H2",0]
[]
[3,9,75,null,"The tenderer is referred to the \"Model Preambles for Trades 2008\" for supplementary and comprehensive expansion of descriptions, appropriate provision for which shall be deemed to have been included in all relevant rates",null,0]
[]
[3,9,75,null,"GLAZING","H2",0]
[]
[3,9,75,null,"(CPAP WORK GROUP NO. 150 UNLESS OTHERWISE STATED)","H2",0]
[]
[3,9,75,null,"GLAZING TO STEEL WITH PUTTY","H2",0]
[]
[3,9,75,null,"6,00mm Toughened clear safety glass secured into galvanized window with a compatible UV resistant sealant","H3",0]
[]
[3,9,75,1,"Panes exceeding 0,1m2 and not exceeding 0,5m2","m2",14,null,{"$f":"G912*H912","v":0}]
[]
[3,9,75,2,"Issue of Glazing Certificate.","Item",1,null,{"$f":"G914*H914","v":0}]
[]
[3,9,{"$nulls":4},0,null,{"$f":"SUM(I910:I915)","v":0}]
[]
[3,10,76,null,"SECTION No. 3","H1",0]
[]
[3,10,76,null,"BILL No. 9 : PAINTWORK","H1",0]
[]
[3,10,76,null,"MODEL PREAMBLES","H2",0]
[]
[3,10,76,null,"The tenderer is referred to the \"Model Preambles for Trades 2008\" for supplementary and comprehensive expansion of descriptions, appropriate provision for which shall be deemed to have been included in all relevant rates",null,0]
[]
[3,10,76,null,"SUPPLEMENTARY PREAMBLES","H2",0]
[]
[3,10,76,null,"Trade Names","H3",0]
[]
[3,10,76,null,"Where trade names are specified it will read \"or equal approved\"",null,0]
[]
[3,10,76,null,"(CPAP WORK GROUP NO. 152 UNLESS OTHERWISE STATED)","H2",0]
[]
[3,10,76,null,"PAINTWORK TO PREVIOUSLY PAINTED WORK","H2",0]
[]
[3,10,76,null,"ON FLOATED PLASTER","H2",0]
[]
[3,10,76,null,"Prepare and brush surface to remove all loose contaminants and apply one coat PP700 gypsum and plaster primer and two coats approved emulsion paint for interior use","H3",0]
[]
[3,10,76,1,"On internal walls","m2",963,null,{"$f":"G940*H940","v":0}]
[]
[3,10,77,null,"Prepare and brush surface to remove all loose contaminants and apply one coat alkali resistant primer, and two coats approved emulsion paint for external use","H3",0]
[]
[3,10,77,2,"On external walls","m2",316,null,{"$f":"G944*H944","v":0}]
[]
[3,10,77,null,"ON WOOD","H2",0]
[]
[3,10,77,null,"Prepare and brush surface to remove all loose contaminants and apply two coats approved carbolineum anti-corrosive coal tar paint","H3",0]
[]
[3,10,77,3,"On roof timbers at eaves and verges","m2",211,null,{"$f":"G950*H950","v":0}]
[]
[3,10,77,null,"ON METAL","H2",0]
[]
[3,10,77,null,"Prepare and brush surface to remove all loose contaminants and apply one coat galvanized iron primer, one universal undercoat and two coats super enamel paint","H3",0]
[]
[3,10,77,4,"On door frames","m2",11,null,{"$f":"G956*H956","v":0}]
[]
[3,10,77,5,"On window frames","m2",227,null,{"$f":"G958*H958","v":0}]
[]
[3,10,77,null,"PAINTWORK TO NEW WORK","H2",0]
[]
[3,10,77,null,"ON FLOATED PLASTER","H2",0]
[]
[3,10,77,null,"Prepare and brush surface to remove all loose contaminants and apply one coat PP700 gypsum and plaster primer and two coats approved emulsion paint for interior use","H3",0]
[]
[3,10,77,6,"On internal walls","m2",28,null,{"$f":"G966*H966","v":0}]
[]
[3,10,78,null,"Prepare and brush surface to remove all loose contaminants and apply one coat alkali resistant primer, one undercoat and two coats PVA emulsion paint for external use","H3",0]
[]
[3,10,78,7,"On external walls","m2",28,null,{"$f":"G970*H970","v":0}]
[]
[3,10,78,null,"ON PLASTER BOARD","H2",0]
[]
[3,10,78,null,"Prepare, brush surface to remove all loose contaminants and apply one coat approved  alkali resistant primer, and two coats approved washable super acrylic PVA Colour: White","H3",0]
[]
[3,10,78,8,"On ceilings and cornices ","m2",600,null,{"$f":"G976*H976","v":0}]
[]
[3,10,78,null,"ON FIBRE CEMENT","H2",0]
[]
[3,10,78,null,"Prepare and brush surface to remove loose contaminants and apply one coat professional gypsum & plaster primer PP700, and two coats approved emulsion paint","H3",0]
[]
[3,10,78,9,"On fascias & barge boards","m2",55,null,{"$f":"G982*H982","v":0}]
[]
[3,10,78,null,"Prepare, brush surface to remove all loose contaminants, stain and apply one coat \"Woodcare Pretreatment (WWP 1)\" or equal approved , and three coats \"Woodcare Wood Preservative (FPR1)\" or equal approved preservative strictly in accordance with the Manufacturer's instructions","H3",0]
[]
[3,10,78,10,"On doors","m2",46,null,{"$f":"G986*H986","v":0}]
[]
[3,10,{"$nulls":4},0,null,{"$f":"SUM(I938:I987)","v":0}]
[]
[{"$nulls":4},"SECTION SUMMARY"]
[]
[3,11,80,1,"Roof Coverings","Page",49,null,{"$f":"+I568","v":0}]
[]
[3,11,80,2,"Carpentry & Joinery","Page",52,null,{"$f":"+I604","v":0}]
[]
[3,11,80,3,"Ceilings & Partitions","Page",55,null,{"$f":"+I646","v":0}]
[]
[3,11,80,4,"Floor Covering ","Page",58,null,{"$f":"+I678","v":0}]
[]
[3,11,80,5,"Ironmongery","Page",63,null,{"$f":"+I758","v":0}]
[]
[3,11,80,6,"Metalwork","Page",68,null,{"$f":"+I822","v":{"v":130000,"d":"R130,000.00"}}]
[]
[3,11,80,7,"Plastering","Page",71,null,{"$f":"+I856","v":0}]
[]
[3,11,80,8,"Plumbing & Drainage","Page",74,null,{"$f":"+I894","v":0}]
[]
[3,11,80,9,"Glazing","Page",75,null,{"$f":"+I916","v":0}]
[]
[3,11,80,10,"Paintwork","Page",79,null,{"$f":"+I988","v":0}]
[]
[{"$nulls":4},"SUB-TOTAL",{"$nulls":3},{"$f":"SUM(I992:I1011)","v":{"v":130000,"d":"R130,000.00"}}]
[]
[4,1,81,null,"SECTION No. 4","H1",0]
[]
[4,1,81,null,"BILL No. 1 : EARTHWORKS","H1",0]
[]
[4,1,81,null,"(CPAP WORK GROUP NO. 104 UNLESS OTHERWISE STATED)","H2",0]
[]
[4,1,81,null,"EXCAVATION, FILLING, ETC OTHER THAN BULK","H2",0]
[]
[4,1,81,null,"Earth berm","H3",0]
[]
[4,1,81,1,"Create earth berm for stormwater control with in situ material 1,5m wide at base x 500mm high","m",50,null,{"$f":"G1024*H1024","v":0}]
[]
[4,1,81,null,"Headwall","H3",0]
[]
[4,1,81,2,"Construct headwall outlet (comprising of 630 x 200 x 4300mm long reinforced ref. 245 concrete footing with 1000mm high 230mm brick-wall including all form-work, excavation, filling, ramming, soil poisoning) for storm water from above v-drain elsewhere measured, as per drawing.","No",1,null,{"$f":"G1028*H1028","v":0}]
[]
[4,1,81,null,"Soak Away","H3",0]
[]
[4,1,81,3,"Excavate for and create 15sqm of 300mm thick gabion/reno mattress (as per drawing)","No",1,null,{"$f":"G1032*H1032","v":0}]
[]
[4,1,{"$nulls":4},0,null,{"$f":"SUM(I1023:I1033)","v":0}]
[]
[4,2,82,null,"SECTION No. 4","H1",0]
[]
[4,2,82,null,"BILL No. 2 : V DRAINS & APRONS","H1",0]
[]
[4,2,82,null,"REMOVAL OF EXISTING WORK","H2",0]
[]
[4,2,82,null,"Break up and Remove","H3",0]
[]
[4,2,82,1,"Hacking off concrete stormwater channel","m2",8,null,{"$f":"G1044*H1044","v":0}]
[]
[4,2,82,null,"SURFACE DRAINAGE","H2",0]
[]
[4,2,82,null,"Precast or in-situ Ref 193 mesh reinforced concrete (25MPa) open stormwater channels having V-shaped waterway formed in top, finished smooth on all exposed surfaces in 3:1 cement plaster trowelled smooth and with angles rounded, cast in suitable lengths not exceeding 3m, including all formwork, moulds, shallow excavation, filling and ramming, laying to falls, bedding and pointing in 3:1 cement mortar","H3",0]
[]
[4,2,82,2,"V- shaped concrete channel 600mm wide and 100mm thick concrete lining with wood finish on exposed surfaces laid to falls in panels not exceeding 1.80m long, with 12mm softboard movement joints including all excavations, formwork, cart away as per drawing","m",125,null,{"$f":"G1050*H1050","v":0}]
[]
[4,2,82,3,"Extra for 600mm angle","No",3,null,{"$f":"G1052*H1052","v":0}]
[]
[4,2,82,4,"Extra for 600mm T-intersection","No",1,null,{"$f":"G1054*H1054","v":0}]
[]
[4,2,82,5,"Extra for forming 150mm thick 600mm wide spreader fanning out to 2 600mm width at furthest end with cement grouted stone pitching cast in ass diffusers including working off concrete to a smooth finish","No",1,null,{"$f":"G1056*H1056","v":0}]
[]
[4,2,82,6,"10mm Thick polystyrene joint forming material in expansion joint between concrete and concrete surfaces in narrow widths not exceeding 300mm high","m",61,null,{"$f":"G1058*H1058","v":0}]
[]
[4,2,83,7,"Rake out 10mm wide expansion joint material for a depth of 10mm and point with UV and chemical resistant polysulphide sealant","m",61,null,{"$f":"G1060*H1060","v":0}]
[]
[4,2,83,null,"SOIL POISONING","H2",0]
[]
[4,2,83,null,"Soil insecticide inclusive of a written guarantee","H3",0]
[]
[4,2,83,8,"Under floors etc including forming and poisoning shallow furrows against foundation walls etc, filling in furrows and ramming","m2",75,null,{"$f":"G1066*H1066","v":0}]
[]
[4,2,83,null,"CONCRETE APRONS AND CLASS VERANDAH WALKWAYS","H2",0]
[]
[4,2,83,null,"EARTHWORKS","H2",0]
[]
[4,2,83,null,"SITE CLEARANCE ETC","H2",0]
[]
[4,2,83,null,"Site clearance","H3",0]
[]
[4,2,83,9,"Clear the area to be paved of all grass, roots, rubbish, etc. ","m2",34,null,{"$f":"G1076*H1076","v":0}]
[]
[4,2,83,null,"EXCAVATION, FILLING, ETC OTHER THAN BULK","H2",0]
[]
[4,2,83,null,"Excavation in earth not exceeding 2m deep","H3",0]
[]
[4,2,83,10,"Reduced levels under floors.","m3",7,null,{"$f":"G1082*H1082","v":0}]
[]
[4,2,83,null,"EARTH FILLING, ETC.","H2",0]
[]
[4,2,83,null,"Coarse river sand filling supplied by the contractor:","H3",0]
[]
[4,2,83,11,"Under floors etc. (Provisional).","m3",2,null,{"$f":"G1088*H1088","v":0}]
[]
[4,2,83,null,"COMPACTION","H2",0]
[]
[4,2,84,null,"Compaction of surfaces","H3",0]
[]
[4,2,84,12,"Scarify in-situ material for a depth of 150mm and compact to obtain 95% Mod AASHTO dry density","m2",34,null,{"$f":"G1094*H1094","v":0}]
[]
[4,2,84,null,"SOIL POISONING","H2",0]
[]
[4,2,84,null,"Soil insecticide inclusive of a written guarantee","H3",0]
[]
[4,2,84,13,"Under floors etc including forming and poisoning shallow furrows against foundation walls etc, filling in furrows and ramming","m2",34,null,{"$f":"G1100*H1100","v":0}]
[]
[4,2,84,null,"CONCRETE, FORMWORK AND REINFORCEMENT","H2",0]
[]
[4,2,84,null,"REINFORCED CONCRETE","H2",0]
[]
[4,2,84,null,"25MPa/19mm Concrete","H3",0]
[]
[4,2,84,14,"Surface beds, slabs, etc to falls and currents","m3",5,null,{"$f":"G1108*H1108","v":0}]
[]
[4,2,84,null,"CONCRETE SUNDRIES","H2",0]
[]
[4,2,84,null,"Finishing top surfaces of concrete with a woodfloat finish","H3",0]
[]
[4,2,84,15,"Surface beds laid in panels to falls and true non-slip wood float finish including slightly rounded edges to panels","m2",34,null,{"$f":"G1114*H1114","v":0}]
[]
[4,2,84,null,"TEST BLOCKS","H2",0]
[]
[4,2,84,16,"Prepare a set of six concrete cubes each cube size 150 x 150 x 150mm for strength cubes and deliver to an approved laboratory for testing and pay all charges in connection therewith","No",3,null,{"$f":"G1118*H1118","v":0}]
[]
[4,2,84,null,"ROUGH FORMWORK (DEGREE OF ACCURACY II)","H2",0]
[]
[4,2,85,null,"Rough formwork to sides","H3",0]
[]
[4,2,85,17,"Apron slabs, paving and ramps not exceeding 300mm high","m",68,null,{"$f":"G1124*H1124","v":0}]
[]
[4,2,85,null,"Expansion joints with 10mm softboard between vertical concrete and brick surfaces","H3",0]
[]
[4,2,85,18,"10mm Joints not exceeding 300mm high","m",34,null,{"$f":"G1128*H1128","v":0}]
[]
[4,2,85,null,"STEEL REINFORCEMENT (PROVISIONAL)","H2",0]
[]
[4,2,85,null,"Mesh reinforcement","H3",0]
[]
[4,2,85,19,"Ref 193 welded mesh fabric reinforcement cast into concrete pavings, etc","m2",34,null,{"$f":"G1134*H1134","v":0}]
[]
[4,2,85,null,"WATERPROOFING","H2",0]
[]
[4,2,85,null,"DAMP-PROOFING OF WALLS AND FLOORS","H2",0]
[]
[4,2,85,null,"One layer of 250 micron USB Green waterproof sheeting sealed at laps with Pressure Sensitive Tape","H3",0]
[]
[4,2,85,20,"Under surface beds","m2",34,null,{"$f":"G1142*H1142","v":0}]
[]
[4,2,85,null,"JOINT SEALANTS, ETC","H2",0]
[]
[4,2,85,null,"SANS approved two-part grey polysulphide sealing compound (UV and chemical resistent) including backing chord, bond breaker, primer, etc","H3",0]
[]
[4,2,85,21,"Rake out 10mm wide expansion joint material for a depth of 10mm and point with polysulphide sealant","m",34,null,{"$f":"G1148*H1148","v":0}]
[]
[4,2,85,null,"SCREEDS","H2",0]
[]
[4,2,85,null,"1:5 Cement plaster screeds wood floated on concrete","H3",0]
[]
[4,2,85,22,"Average 35mm thick on floors to falls","m2",34,null,{"$f":"G1154*H1154","v":0}]
[]
[4,2,{"$nulls":4},0,null,{"$f":"SUM(I1042:I1155)","v":0}]
[]
[4,3,87,null,"SECTION No. 4","H1",0]
[]
[4,3,87,null,"BILL No. 3 : TANK STANDS","H1",0]
[]
[4,3,87,null,"EXCAVATION, FILLING, ETC OTHER THAN BULK","H2",0]
[]
[4,3,87,null,"Excavation in earth not exceeding 2m deep","H3",0]
[]
[4,3,87,1,"Trenches","m3",30,null,{"$f":"G1166*H1166","v":0}]
[]
[4,3,87,null,"Extra over all excavations for carting away:","H3",0]
[]
[4,3,87,2,"Surplus material from excavations and/or stock piles on site to a dumping site to be located by the contractor.","m3",17,null,{"$f":"G1170*H1170","v":0}]
[]
[4,3,87,null,"Risk of collapse of excavations","H3",0]
[]
[4,3,87,3,"Sides of excavations not exceeding 1,5m deep","m2",92,null,{"$f":"G1174*H1174","v":0}]
[]
[4,3,87,null,"Keeping excavations free of water","H3",0]
[]
[4,3,87,4,"Keeping excavations free of all water other than subterranean water","Item",1,null,{"$f":"G1178*H1178","v":0}]
[]
[4,3,87,null,"Earth filling obtained from the excavations and/or prescribed stock piles on site compacted to 97% Mod AASHTO density","H3",0]
[]
[4,3,87,5,"Backfilling to trenches, holes","m3",15,null,{"$f":"G1182*H1182","v":0}]
[]
[4,3,87,null,"Earth filling (G7 material) supplied by the contractor compacted to 95% Mod AASHTO density:","H3",0]
[]
[4,3,87,6,"Under floors, steps, pavings, etc","m3",5,null,{"$f":"G1186*H1186","v":0}]
[]
[4,3,88,null,"Compaction of surfaces","H3",0]
[]
[4,3,88,7,"Compaction of ground surface under pavings etc including scarifying for a depth of 150mm, breaking down oversize material, adding suitable material where necessary and compacting to 98% Mod AASHTO density","m2",74,null,{"$f":"G1190*H1190","v":0}]
[]
[4,3,88,null,"SOIL POISONING","H2",0]
[]
[4,3,88,null,"Soil insecticide inclusive of a written guarantee","H3",0]
[]
[4,3,88,8,"Under floors etc including forming and poisoning shallow furrows against foundation walls etc, filling in furrows and ramming","m2",168,null,{"$f":"G1196*H1196","v":0}]
[]
[4,3,88,null,"CONCRETE, FORMWORK AND REINFORCEMENT","H2",0]
[]
[4,3,88,null,"UNREINFORCED CONCRETE CAST AGAINST EXCAVATED SURFACES","H2",0]
[]
[4,3,88,null,"25MPa/19mm Concrete","H3",0]
[]
[4,3,88,9,"Strip footings","m3",10,null,{"$f":"G1204*H1204","v":0}]
[]
[4,3,88,null,"REINFORCED CONCRETE","H2",0]
[]
[4,3,88,null,"25MPa/19mm Concrete","H3",0]
[]
[4,3,88,10,"Surface beds cast in panels","m3",5,null,{"$f":"G1210*H1210","v":0}]
[]
[4,3,88,null,"CONCRETE SUNDRIES","H2",0]
[]
[4,3,88,null,"Finishing top surfaces of concrete with a woodfloat finish","H3",0]
[]
[4,3,88,11,"Surface beds, slabs, etc","m2",48,null,{"$f":"G1216*H1216","v":0}]
[]
[4,3,89,null,"TEST BLOCKS","H2",0]
[]
[4,3,89,12,"Making and testing set of three 150 x 150 x 150mm concrete strength test cube (Provisional)","No",16,null,{"$f":"G1220*H1220","v":0}]
[]
[4,3,89,null,"STEEL REINFORCEMENT (PROVISIONAL)","H2",0]
[]
[4,3,89,null,"Mesh reinforcement","H3",0]
[]
[4,3,89,13,"Steel mesh reinforcement reference No. 193 in concrete slabs, etc. including all laps, bending, cutting, etc.  (Measured net).","m2",74,null,{"$f":"G1226*H1226","v":0}]
[]
[4,3,89,null,"BRICKWORK","H2",0]
[]
[4,3,89,null,"Brickwork of NFX bricks (14 MPa nominal compressive strength) in Class I mortar:","H3",0]
[]
[4,3,89,14,"One brick walls in foundations.","m2",40,null,{"$f":"G1232*H1232","v":0}]
[]
[4,3,89,null,"Brickwork of NFP bricks (14 MPa nominal compressive strength) in Class II mortar:","H3",0]
[]
[4,3,89,15,"One brick walls in superstructure.","m2",48,null,{"$f":"G1236*H1236","v":0}]
[]
[4,3,89,null,"Bagging and sealing the outer face of the inner skin of walls with 1:3 cement and sand mixture and seal with two coats \"Brixeal\" bitumen emulsion waterproofing coating:","H3",0]
[]
[4,3,89,16,"To walls (Provisional).","m2",48,null,{"$f":"G1240*H1240","v":0}]
[]
[4,3,89,null,"Brickwork reinforcement:","H3",0]
[]
[4,3,89,17,"150mm Wide reinforcement built in horizontally.","m",328,null,{"$f":"G1244*H1244","v":0}]
[]
[4,3,89,null,"FACE BRICKWORK","H2",0]
[]
[4,3,89,null,"SABS approved face bricks in stretcher bond with ruled joints and perpends externally:","H3",0]
[]
[4,3,89,18,"Extra over brickwork for face brickwork externally.","m2",48,null,{"$f":"G1250*H1250","v":0}]
[]
[4,3,90,null,"Brick-on-edge header course copings, sills, etc, of approved face bricks pointed with recessed joints on all exposed faces, 220mm wide sill set sloping and slightly projecting:","H3",0]
[]
[4,3,90,19,"230mm Wide header course to top of one brick wall bedded and jointed in cement mortar and pointed on top and both sides as described.","m",80,null,{"$f":"G1254*H1254","v":0}]
[]
[4,3,90,null,"METALWORK","H2",0]
[]
[4,3,90,null,"Sundry items","H3",0]
[]
[4,3,90,20,"30mm Approved brass padlock","No",8,null,{"$f":"G1260*H1260","v":0}]
[]
[4,3,90,21,"400mm Long x 50mm wide x 3mm thick hot dipped galvanized three times holed steel plate twice bolted to concrete with and including 8mm masonry anchors","No",8,null,{"$f":"G1262*H1262","v":0}]
[]
[4,3,90,null,"PLUMBING AND DRAINAGE","H2",0]
[]
[4,3,90,null,"PVC","H3",0]
[]
[4,3,90,22,"20mm PVC sleeve 365mm long cast in concrete for water pipes ( elsewehere) ","No",8,null,{"$f":"G1268*H1268","v":0}]
[]
[4,3,90,null,"Polycop","H3",0]
[]
[4,3,90,23,"15mm Pipe fixed to wall with and including proprietary brackets","m",12,null,{"$f":"G1272*H1272","v":0}]
[]
[4,3,90,24,"Extra on polycop piping for 15mm fittings","No",40,null,{"$f":"G1274*H1274","v":0}]
[]
[4,3,90,25,"Extra over for PVC Ball valve","No",8,null,{"$f":"G1276*H1276","v":0}]
[]
[4,3,90,26,"Extra for 90 deg HDPE spout","No",8,null,{"$f":"G1278*H1278","v":0}]
[]
[4,3,{"$nulls":4},0,null,{"$f":"SUM(I1165:I1279)","v":0}]
[]
[{"$nulls":4},"SECTION SUMMARY"]
[]
[4,4,92,1,"Earthworks","Page",81,null,{"$f":"+I1034","v":0}]
[]
[4,4,92,2,"V Drains & Aprons","Page",86,null,{"$f":"+I1156","v":0}]
[]
[4,4,92,3,"Tank Stands","Page",91,null,{"$f":"+I1280","v":0}]
[]
[{"$nulls":4},"Section Sub-Total",{"$nulls":3},{"$f":"SUM(I1284:I1289)","v":0}]
[]
[5,1,93,null,"SECTION No. 5","H1",0]
[]
[5,1,93,null,"BILL No. 1 : ELECTRICAL INSTALLATION (PROVISIONAL)","H1",0]
[]
[5,1,93,null,"(CPAP WORK GROUP NO. 160 UNLESS OTHERWISE STATED)","H2",0]
[]
[5,1,93,null,"Tenderers are to note that the sum included in the amount column for this Section of the Bills of Quantities, should be the total of all priced items in the Electrical Installation, Bill of Quantities as attached.  Note: Tenderers are to include for all Preliminary and General costs of the electrical contractor, in the rates.",null,0]
[]
[5,1,93,null,"P8000 Galvanised Trunking C/W enclosure",null,0]
[]
[5,1,93,1,"Supply","m",300,null,{"$f":"G1302*H1302","v":0}]
[]
[5,1,93,2,"Install","m",300,null,{"$f":"G1304*H1304","v":0}]
[]
[5,1,93,null,"20mm Conduit ",null,0]
[]
[5,1,93,3,"Supply","m",500,null,{"$f":"G1308*H1308","v":0}]
[]
[5,1,93,4,"Install","m",500,null,{"$f":"G1310*H1310","v":0}]
[]
[5,1,93,null,"20mm PVC round boxes complete with lids & mounting screws",null,0]
[]
[5,1,93,5,"Supply","No",120,null,{"$f":"G1314*H1314","v":0}]
[]
[5,1,93,6,"Install","No",120,null,{"$f":"G1316*H1316","v":0}]
[]
[5,1,93,null,"100 x 100 x 50 mm deep mounted  for isolators / SSO units",null,0]
[]
[5,1,93,7,"Supply","No",40,null,{"$f":"G1320*H1320","v":0}]
[]
[5,1,93,8,"Install","No",40,null,{"$f":"G1322*H1322","v":0}]
[]
[5,1,94,null,"100 x 50 x 50 mm deep mounted for light switches",null,0]
[]
[5,1,94,9,"Supply","No",23,null,{"$f":"G1326*H1326","v":0}]
[]
[5,1,94,10,"Install","No",23,null,{"$f":"G1328*H1328","v":0}]
[]
[5,1,94,null,"32mm bosal conduit",null,0]
[]
[5,1,94,11,"Supply","No",100,null,{"$f":"G1332*H1332","v":0}]
[]
[5,1,94,12,"Install","No",100,null,{"$f":"G1334*H1334","v":0}]
[]
[5,1,94,null,"1,5 mm² (Live)",null,0]
[]
[5,1,94,13,"Supply","m",800,null,{"$f":"G1338*H1338","v":0}]
[]
[5,1,94,14,"Install","m",800,null,{"$f":"G1340*H1340","v":0}]
[]
[5,1,94,null,"1,5 mm² (Neutral)",null,0]
[]
[5,1,94,15,"Supply","m",800,null,{"$f":"G1344*H1344","v":0}]
[]
[5,1,94,16,"Install","m",800,null,{"$f":"G1346*H1346","v":0}]
[]
[5,1,94,null,"2,5 mm² (Earth)",null,0]
[]
[5,1,94,17,"Supply","m",1200,null,{"$f":"G1350*H1350","v":0}]
[]
[5,1,94,18,"Install","m",1200,null,{"$f":"G1352*H1352","v":0}]
[]
[5,1,94,null,"2.5 mm² (Live)",null,0]
[]
[5,1,94,19,"Supply","m",1200,null,{"$f":"G1356*H1356","v":0}]
[]
[5,1,94,20,"Install","m",1200,null,{"$f":"G1358*H1358","v":0}]
[]
[5,1,94,null,"2.5 mm² (Neutral)",null,0]
[]
[5,1,94,21,"Supply","m",1200,null,{"$f":"G1362*H1362","v":0}]
[]
[5,1,94,22,"Install","m",1200,null,{"$f":"G1364*H1364","v":0}]
[]
[5,1,95,null,"2,5 mm² (Earth)",null,0]
[]
[5,1,95,23,"Supply","m",1200,null,{"$f":"G1368*H1368","v":0}]
[]
[5,1,95,24,"Install","m",1200,null,{"$f":"G1370*H1370","v":0}]
[]
[5,1,95,null,"4 mm² (Live)",null,0]
[]
[5,1,95,25,"Supply","m",100,null,{"$f":"G1374*H1374","v":0}]
[]
[5,1,95,26,"Install","m",100,null,{"$f":"G1376*H1376","v":0}]
[]
[5,1,95,null,"4 mm² (Neutral)",null,0]
[]
[5,1,95,27,"Supply","m",100,null,{"$f":"G1380*H1380","v":0}]
[]
[5,1,95,28,"Install","m",100,null,{"$f":"G1382*H1382","v":0}]
[]
[5,1,95,null,"2,5 mm² (Earth)",null,0]
[]
[5,1,95,29,"Supply","m",100,null,{"$f":"G1386*H1386","v":0}]
[]
[5,1,95,30,"Install","m",100,null,{"$f":"G1388*H1388","v":0}]
[]
[5,1,95,null,"TYPE A",null,0]
[]
[5,1,95,null,"1500mm (5ft) Surface mounted, open channel fluorescent luminaire. Metal Body. 2 x T5 fluorescent lamps complete with electronic control gear and telescopic ends. Minimum 8750 Lumens. 2 x 35W Cool White. Colour white or as per Architect",null,0]
[]
[5,1,95,31,"Supply","No",60,null,{"$f":"G1394*H1394","v":0}]
[]
[5,1,95,32,"Install","No",60,null,{"$f":"G1396*H1396","v":0}]
[]
[5,1,96,null,"TYPE B Wall mounted die-cast aluminium body with glass diffuser. IP 65, Corrosion and vandal resistant luminaire, complete with 2 x CFL lamp, electronic control gear and all necessary accessories. All external bolts to be stainless steel. Minimum 2400 lm.2 x 11W Cool White. Colour black or as per Architect",null,0]
[]
[5,1,96,33,"Supply","No",20,null,{"$f":"G1400*H1400","v":0}]
[]
[5,1,96,34,"Install","No",20,null,{"$f":"G1402*H1402","v":0}]
[]
[5,1,96,null,"TYPE C Ceiling/Wall mounted high pressure die-cast aluminium base with opal high-impact acrylic diffuser. Minimum IP 65, Corrosion and vandal resistant luminaire complete with 2x CFL lamps, electronic control gear and all necessary accessories. All external bolts to be stainless steel. Minimum 2400lm.2 x 11W Cool White. Colour black or as per Architect",null,0]
[]
[5,1,96,35,"Supply","No",2,null,{"$f":"G1406*H1406","v":0}]
[]
[5,1,96,36,"Install","No",2,null,{"$f":"G1408*H1408","v":0}]
[]
[5,1,96,null,"230V, 11W ES/BC Compact fluorescent lamps colour cool white",null,0]
[]
[5,1,96,37,"Supply","No",4,null,{"$f":"G1412*H1412","v":0}]
[]
[5,1,96,38,"Install","No",4,null,{"$f":"G1414*H1414","v":0}]
[]
[5,1,96,null,"230V, 1500mm T5 fluorescent tubes colour cool white",null,0]
[]
[5,1,96,39,"Supply","No",4,null,{"$f":"G1418*H1418","v":0}]
[]
[5,1,96,40,"Install","No",4,null,{"$f":"G1420*H1420","v":0}]
[]
[5,1,96,null,"Administration Block Alarm System including connection cables",null,0]
[]
[5,1,97,41,"Supply","No",1,null,{"$f":"G1424*H1424","v":0}]
[]
[5,1,97,42,"Install","No",1,null,{"$f":"G1426*H1426","v":0}]
[]
[5,1,97,null,"200W Low noise wall mounted electric fan",null,0]
[]
[5,1,97,43,"Supply","No",2,null,{"$f":"G1430*H1430","v":0}]
[]
[5,1,97,44,"Install","No",2,null,{"$f":"G1432*H1432","v":0}]
[]
[5,1,97,null,"Telephone Distribution Board",null,0]
[]
[5,1,97,45,"Supply","No",1,null,{"$f":"G1436*H1436","v":0}]
[]
[5,1,97,46,"Install","No",1,null,{"$f":"G1438*H1438","v":0}]
[]
[5,1,97,null,"School Siren and Push Button with Latch in Timer",null,0]
[]
[5,1,97,47,"Supply","No",1,null,{"$f":"G1442*H1442","v":0}]
[]
[5,1,97,48,"Install","No",1,null,{"$f":"G1444*H1444","v":0}]
[]
[5,1,97,null,"50mm PVC Sleeve",null,0]
[]
[5,1,97,49,"Supply","No",10,null,{"$f":"G1448*H1448","v":0}]
[]
[5,1,97,50,"Install","No",10,null,{"$f":"G1450*H1450","v":0}]
[]
[5,1,97,null,"2-Compartment galvanised and painted power skirting. (Grey)",null,0]
[]
[5,1,97,51,"Supply","m",10,null,{"$f":"G1454*H1454","v":0}]
[]
[5,1,97,52,"Install","m",10,null,{"$f":"G1456*H1456","v":0}]
[]
[5,1,97,null,"Power skirting inside and Outside corners",null,0]
[]
[5,1,97,53,"Supply","m",10,null,{"$f":"G1460*H1460","v":0}]
[]
[5,1,97,54,"Install","m",10,null,{"$f":"G1462*H1462","v":0}]
[]
[5,1,98,null,"Power skirting end caps",null,0]
[]
[5,1,98,55,"Supply","m",5,null,{"$f":"G1466*H1466","v":0}]
[]
[5,1,98,56,"Install","m",5,null,{"$f":"G1468*H1468","v":0}]
[]
[5,1,98,null,"Power skirting Cover plates",null,0]
[]
[5,1,98,57,"Supply","m",5,null,{"$f":"G1472*H1472","v":0}]
[]
[5,1,98,58,"Install","m",5,null,{"$f":"G1474*H1474","v":0}]
[]
[5,1,98,null,"Power skirting conduit entry boxes .",null,0]
[]
[5,1,98,59,"Supply","m",5,null,{"$f":"G1478*H1478","v":0}]
[]
[5,1,98,60,"Install","m",5,null,{"$f":"G1480*H1480","v":0}]
[]
[5,1,98,null,"16-24 Way Surface Mounted Disribution Board",null,0]
[]
[5,1,98,61,"Supply","No",2,null,{"$f":"G1484*H1484","v":0}]
[]
[5,1,98,62,"Install","No",2,null,{"$f":"G1486*H1486","v":0}]
[]
[5,1,98,null,"15 Amp single phase Circuit breaker",null,0]
[]
[5,1,98,63,"Supply","No",7,null,{"$f":"G1490*H1490","v":0}]
[]
[5,1,98,64,"Install","No",7,null,{"$f":"G1492*H1492","v":0}]
[]
[5,1,98,null,"20Amp single phase Circuit breaker",null,0]
[]
[5,1,98,65,"Supply","No",13,null,{"$f":"G1496*H1496","v":0}]
[]
[5,1,98,66,"Install","No",13,null,{"$f":"G1498*H1498","v":0}]
[]
[5,1,98,null,"60Amp double pole Earth Leakage Unit",null,0]
[]
[5,1,98,67,"Supply","No",5,null,{"$f":"G1502*H1502","v":0}]
[]
[5,1,98,68,"Install","No",5,null,{"$f":"G1504*H1504","v":0}]
[]
[5,1,99,null,"Class II 10kA single pole SPD unit",null,0]
[]
[5,1,99,69,"Supply","No",4,null,{"$f":"G1508*H1508","v":0}]
[]
[5,1,99,70,"Install","No",4,null,{"$f":"G1510*H1510","v":0}]
[]
[5,1,99,null,"Single Lever, one way switch",null,0]
[]
[5,1,99,71,"Supply","No",18,null,{"$f":"G1514*H1514","v":0}]
[]
[5,1,99,72,"Install","No",18,null,{"$f":"G1516*H1516","v":0}]
[]
[5,1,99,null,"IP65 Single lever switch",null,0]
[]
[5,1,99,73,"Supply","No",1,null,{"$f":"G1520*H1520","v":0}]
[]
[5,1,99,74,"Install","No",1,null,{"$f":"G1522*H1522","v":0}]
[]
[5,1,99,null,"Two Lever one way switch",null,0]
[]
[5,1,99,75,"Supply","No",3,null,{"$f":"G1526*H1526","v":0}]
[]
[5,1,99,76,"Install","No",3,null,{"$f":"G1528*H1528","v":0}]
[]
[5,1,99,null,"16 Amp 3 pin double SSO ZA Plug (White)",null,0]
[]
[5,1,99,77,"Supply","No",20,null,{"$f":"G1532*H1532","v":0}]
[]
[5,1,99,78,"Install","No",20,null,{"$f":"G1534*H1534","v":0}]
[]
[5,1,99,null,"16 Amp 3 pin Single (White)",null,0]
[]
[5,1,99,79,"Supply","No",2,null,{"$f":"G1538*H1538","v":0}]
[]
[5,1,99,80,"Install","No",2,null,{"$f":"G1540*H1540","v":0}]
[]
[5,1,99,null,"30 Amp 2 pole 230V",null,0]
[]
[5,1,99,81,"Supply","No",1,null,{"$f":"G1544*H1544","v":0}]
[]
[5,1,99,82,"Install","No",1,null,{"$f":"G1546*H1546","v":0}]
[]
[5,1,100,null,"Replace 10 Amp day light switch per SANS 1777",null,0]
[]
[5,1,100,83,"Supply","No",3,null,{"$f":"G1550*H1550","v":0}]
[]
[5,1,100,84,"Install","No",3,null,{"$f":"G1552*H1552","v":0}]
[]
[5,1,100,null,"8mm Diameter Aluminium lightning protection conductor. To include all holding down clamps, down conductors and bonding to earth rings",null,0]
[]
[5,1,100,85,"Supply","m",200,null,{"$f":"G1556*H1556","v":0}]
[]
[5,1,100,86,"Install","m",200,null,{"$f":"G1558*H1558","v":0}]
[]
[5,1,100,null,"Bond the metal roofs at each corner of the building bonded to the earth electrode in the ground. To include lugs, brass screws, nuts and washers",null,0]
[]
[5,1,100,87,"Supply","No",21,null,{"$f":"G1562*H1562","v":0}]
[]
[5,1,100,88,"Install","No",21,null,{"$f":"G1564*H1564","v":0}]
[]
[5,1,100,null,"Provide test joint points at 500mm AFGL at each down conductor location. The test joint shall comprise of two lugs and a 10mm galvanized steel bolt and nut enclosed in a suitable GRP enclosure",null,0]
[]
[5,1,100,89,"Supply","No",21,null,{"$f":"G1568*H1568","v":0}]
[]
[5,1,100,90,"Install","No",21,null,{"$f":"G1570*H1570","v":0}]
[]
[5,1,100,null,"50mm stranded BCEW down conductor in surface mounted PVC conduit complete with saddles",null,0]
[]
[5,1,100,91,"Supply","m",200,null,{"$f":"G1574*H1574","v":0}]
[]
[5,1,100,92,"Install","m",200,null,{"$f":"G1576*H1576","v":0}]
[]
[5,1,101,null,"1200mm x 16mm diameter Copper earth electrodes driven in ground, including 'Cadweld' joining sleeves as required",null,0]
[]
[5,1,101,93,"Supply","No",21,null,{"$f":"G1580*H1580","v":0}]
[]
[5,1,101,94,"Install","No",21,null,{"$f":"G1582*H1582","v":0}]
[]
[5,1,101,null,"6.0mm x 3 Core ECC",null,0]
[]
[5,1,101,95,"Supply","m",100,null,{"$f":"G1586*H1586","v":0}]
[]
[5,1,101,96,"Install","m",100,null,{"$f":"G1588*H1588","v":0}]
[]
[5,1,101,97,"Term","No",40,null,{"$f":"G1590*H1590","v":0}]
[]
[5,1,101,null,"16.0mm 3 Core ECC",null,0]
[]
[5,1,101,98,"Supply","m",5,null,{"$f":"G1594*H1594","v":0}]
[]
[5,1,101,99,"Install","m",5,null,{"$f":"G1596*H1596","v":0}]
[]
[5,1,101,100,"Term","No",1,null,{"$f":"G1598*H1598","v":0}]
[]
[5,1,101,null,"6.0mm 2 Core ECC",null,0]
[]
[5,1,101,101,"Supply","m",50,null,{"$f":"G1602*H1602","v":0}]
[]
[5,1,101,102,"Install","m",50,null,{"$f":"G1604*H1604","v":0}]
[]
[5,1,101,103,"Term","No",10,null,{"$f":"G1606*H1606","v":0}]
[]
[5,1,101,null,"10.0mm 2 Core ECC",null,0]
[]
[5,1,101,104,"Supply","m",10,null,{"$f":"G1610*H1610","v":0}]
[]
[5,1,101,105,"Install","m",10,null,{"$f":"G1612*H1612","v":0}]
[]
[5,1,101,106,"Term","No",5,null,{"$f":"G1614*H1614","v":0}]
[]
[5,1,102,null,"Trench Excavations including temporary support of sides, keeping excavation dry, bedding material, backfilling, compacting and testing as specified. All backfill material to be suitable as per SANS codes and engineers approval. Backfill material to be imported if necessary. Trench depth to be 800mm below finished ground level",null,0]
[]
[5,1,102,107,"In soft or pickable soil ","m3",14,null,{"$f":"G1618*H1618","v":0}]
[]
[5,1,102,108,"Soft Rock ","m3",14,null,{"$f":"G1620*H1620","v":0}]
[]
[5,1,102,109,"Hard Rock ","m3",14,null,{"$f":"G1622*H1622","v":0}]
[]
[5,1,102,110,"Warning tape installed 500mm below ground level, above cables in trench","m",100,null,{"$f":"G1624*H1624","v":0}]
[]
[5,1,102,null,"TESTING & COMMISSIONING","H3",0]
[]
[5,1,102,111,"Test and commission complete installation as per SANS 10142-1","No",3,null,{"$f":"G1628*H1628","v":0}]
[]
[5,1,102,112,"Provide Certificate of Compliance (CoC) as per SANS 10142-1. One for each DB","No",3,null,{"$f":"G1630*H1630","v":0}]
[]
[5,1,102,113,"Provide Earthing certificate for each BLOCK, to include earth resistance test of each down conductor earth electrode, measured by an Earthing specialist by means of an approved instrument","No",3,null,{"$f":"G1632*H1632","v":0}]
[{"$nulls":8},{"$f":"G1633*H1633","v":0}]
[5,1,102,114,"Remove all redundant equipment, store and dispose at an approved dump site. A disposal certificate to be supplied","No",3,null,{"$f":"G1634*H1634","v":0}]
[{"$nulls":8},{"$f":"G1635*H1635","v":0}]
[5,1,102,115,"Allow for Municipal/Eskom Meter Connection","Item",1,null,{"v":50000,"d":"R50,000.00"}]
[]
[5,1,102,null,"40 Amp Double pole single phase main circuit breaker into existing feeder DB",null,0]
[]
[5,1,102,116,"Supply","No",2,null,{"$f":"G1640*H1640","v":0}]
[]
[5,1,102,117,"Install","No",2,null,{"$f":"G1642*H1642","v":0}]
[]
[5,1,103,null,"16.0mm 3 Core ECC",null,0]
[]
[5,1,103,118,"Supply","m",50,null,{"$f":"G1646*H1646","v":0}]
[]
[5,1,103,119,"Install","m",50,null,{"$f":"G1648*H1648","v":0}]
[]
[5,1,103,120,"Term","No",5,null,{"$f":"G1650*H1650","v":0}]
[]
[5,1,103,null,"Trench Excavations including temporary support of sides, keeping excavation dry, bedding material, backfilling, compacting and testing as specified. All backfill material to be suitable as per SANS codes and engineers approval. Backfill material to be imported if necessary. Trench depth to be 500mm below finished ground level",null,0]
[]
[5,1,103,121,"In soft or pickable soil ","m3",7,null,{"$f":"G1654*H1654","v":0}]
[]
[5,1,103,122,"Soft Rock ","m3",7,null,{"$f":"G1656*H1656","v":0}]
[]
[5,1,103,123,"Hard Rock ","m3",7,null,{"$f":"G1658*H1658","v":0}]
[]
[5,1,103,124,"Warning tape installed 300mm below ground level, above cables in trench","m",50,null,{"$f":"G1660*H1660","v":0}]
[]
[5,1,103,null,"TESTING & COMMISSIONING","H3",0]
[]
[5,1,103,125,"Test and commission complete installation as per SANS 10142-1","No",2,null,{"$f":"G1664*H1664","v":0}]
[]
[5,1,103,126,"Provide Certificate of Compliance (CoC) as per SANS 10142-1. One for each DB and one overall","No",2,null,{"$f":"G1666*H1666","v":0}]
[]
[5,1,103,127,"Decommission, remove and make safe above cable installation upon removal of temporary accommodation","No",2,null,{"$f":"G1668*H1668","v":0}]
[]
[5,1,{"$nulls":4},"0.0",null,{"$f":"SUM(I1301:I1668)","v":{"v":50000,"d":"R50,000.00"}}]
[]
[{"$nulls":4},"FINAL SUMMARY"]
[]
[6,1,105,1,"Preliminaries","Page",34,0,{"$f":"+I373","v":0}]
[]
[6,1,105,2,"Alterations (Provisional)","Page",45,0,{"$f":"+I526","v":0}]
[]
[6,1,105,3,"New Works to Existing Structures (Provisional)","Page",80,0,{"$f":"+I1012","v":{"v":130000,"d":"R130,000.00"}}]
[]
[6,1,105,4,"Siteworks (Provisional)","Page",92,0,{"$f":"+I1290","v":0}]
[]
[6,1,105,5,"Electrical Installation (Provisional)","Page",104,0,{"$f":"+I1670","v":{"v":50000,"d":"R50,000.00"}}]
[]
[6,1,105,{"$nulls":3},"Sub-Total",null,{"$f":"SUM(I1674:I1682)","v":{"v":180000,"d":"R180,000.00"}}]
[]
[6,1,105,{"$nulls":3},"VAT 15%",null,{"$f":"I1684*15%","v":{"v":27000,"d":"R27,000.00"}}]
[]
[{"$nulls":6},"Tender Amount",null,{"$f":"SUM(I1684:I1687)","v":{"v":207000,"d":"R207,000.00"}}]